Cogmind - Beta 17.1 @@@ ROGUE MODE // 2026.08.30 @ 20:34:18 Player: cptwinky Result: Self-destructed Performance ------------- Evolutions (8) 4000 Regions Visited (23) 4600 Robots Destroyed (488) 2440 Value Destroyed (27451) 27451 Prototype IDs (108) 2160 Alien Tech Used (7) 1400 Bonus (31269) 31269 TOTAL SCORE: 73320 Bonus ------- Triggered High Security 500 High Alert Combat Kills 10109 Follower Combat Kills 3045 Registered with UFD 300 Met Optimus in HQ 500 Met Data Miner 300 Met Zhirov 300 Scanned by Researcher 500 Destroyed Superfortress 15000 Met Optimus at Protoforge 1000 Friendly Fire -285 Cogmind --------- Core Integrity 7/1450 Matter 290/300 Energy 161/350 System Corruption 18% Temperature Cool (0) Movement Rolling (110) Ox4 Location -2/Protoforge Parts ------- > --- POWER (3) -------- Improved Quantum Reactor > --- PROPULSION (6) --- Overtuned Huge Scrapsphere Overtuned Huge Scrapsphere > --- UTILITY (11) ----- 0bPrime Scrap Suit Experimental Power Amplifier Huge Storage Unit Experimental Targeting Computer Experimental Core Analyzer SHELL Armor (fused) AEGIS Remote Shield > --- WEAPON (3) ------- Overtuned Beamcaster Overtuned Coil Gun Overtuned Coil Gun > --- INVENTORY (25) --- Compact Wheel 0bPrime Scrap Suit Advanced Cooling System 2N-1CE's Frost Array Experimental Weapon Shielding Centrium Medium Armor Plating Thermal Barrier Long-range Tractor Beam Tachyon Dispersion Ray Heavy Quantum Rifle HERF Cannon HERF Cannon Cooled Nova Cannon Improved KE Penetrator Hypervelocity Railgun Mini Smartbomb Launcher Hellfire Missile Launcher Advanced Remote Datajack Core Stripper Portable AFG (100) Peak State ------------ > --- POWER ------------ Reinforced Antimatter Reactor Light Quantum Reactor Improved Quantum Reactor > --- PROPULSION ------- Armored Heavy Treads Armored Heavy Treads Compact Wheel Compact Wheel > --- UTILITY ---------- Advanced Cooling System Huge Storage Unit Experimental Core Analyzer Experimental Armor Integrity Analyzer Experimental Weapon Shielding Centrium Medium Armor Plating SHELL Armor AEGIS Remote Shield System Mapper > --- WEAPON ----------- Enhanced Nova Cannon Perforator > --- INVENTORY -------- Micro Antimatter Reactor Light Quantum Reactor Wheel Experimental Power Amplifier Advanced Cooling System 2N-1CE's Frost Array Experimental Core Analyzer Experimental Propulsion Shielding Thermal Barrier System Mapper Long-range Tractor Beam Dimensional Node Initializer Supercharged TR Tachyon Dispersion Ray Heavy Quantum Rifle HERF Cannon HERF Cannon Cooled Nova Cannon Hypervelocity Railgun Mini Smartbomb Launcher Hellfire Missile Launcher Advanced Remote Datajack Core Stripper Portable AFG [Rating: 209] Favorites ----------- Power Improved Ion Engine Engine Improved Ion Engine Power Core Fission Core Reactor Cold Fusion Reactor Propulsion Overtuned Huge Scrapsphere Treads Improved Treads Leg Centrium Leg Wheel Overtuned Huge Scrapsphere Flight Unit Cooled Impulse Thruster Utility High-capacity Storage Unit Device Scrap Suit Storage High-capacity Storage Unit Processor Experimental Signal Interpreter Hackware System Mapper Protection Enhanced Scrap Shield Artifact Phase Redirector Weapon Overtuned Beamcaster Energy Gun Overtuned Beamcaster Energy Cannon Light EM Pulse Cannon Ballistic Gun Overtuned Coil Gun Ballistic Cannon Battle Cannon Launcher Heavy Missile Launcher Special Weapon Mining Laser Impact Weapon Heavy Flail Slashing Weapon Sigix Broadsword Special Melee Weapon Improved Datajack Build | -11 -10 -10 -9 -6 -6 -6 -6 -5 -5 -5 -5 -5 -4 -4 -4 -4 -4 -3 -3 -3 -2 -2 -2 ------- Run | Yrd Mat Sub Scr Fac Low Low Dat Pro Fac Upp Upp Zhi Pro Fac Upp Upp War Pro Res Qua Res Tes Frg Slots Evolved 16 | . . . . 8 . . . . 2 . . . . 2 . . . . 2 . 2 . . Power 2 | . . . . 1 . . . . . . . . . . . . . . 1 . . . . Propulsion 4 | . . . . 2 . . . . . . . . . . . . . . . . 2 . . Utility 9 | . . . . 4 . . . . 2 . . . . 2 . . . . 1 . . . . Weapon 1 | . . . . 1 . . . . . . . . . . . . . . . . . . . Parts Attached 280 | 7 10 15 4 38 4 1 . 8 7 6 2 3 1 11 3 1 5 3 43 14 19 36 39 Power 44 | 1 1 1 . 9 . . . . . 2 . 1 . 1 1 . . . 9 4 2 3 9 Engine 8 | 1 1 1 . 3 . . . . . 1 . . . . . . . . . . . . 1 Core 8 | . . . . 5 . . . . . 1 . . . . 1 . . . . . . 1 . Reactor 28 | . . . . 1 . . . . . . . 1 . 1 . . . . 9 4 2 2 8 Propulsion 40 | 2 2 4 2 1 . . . 3 . 1 . 1 . . . . 2 . . . 5 7 10 Treads 15 | 2 2 2 1 . . . . . . . . . . . . . . . . . 3 1 4 Leg 2 | . . . . . . . . . . . . . . . . . 1 . . . 1 . . Wheel 21 | . . 2 1 1 . . . 3 . 1 . . . . . . . . . . 1 6 6 Hover . | . . . . . . . . . . . . . . . . . . . . . . . . Flight 2 | . . . . . . . . . . . . 1 . . . . 1 . . . . . . Utility 121 | 1 4 4 . 15 1 . . 2 5 2 1 1 . 8 1 1 3 2 22 5 9 19 15 Device 63 | . . 2 . 5 . . . 2 5 2 1 1 . 7 1 1 2 2 10 2 7 9 4 Storage 7 | 1 1 1 . . . . . . . . . . . 1 . . . . 3 . . . . Processor 16 | . . . . 2 . . . . . . . . . . . . 1 . 3 . 1 3 6 Hackware 9 | . . . . 2 . . . . . . . . . . . . . . 1 . . 5 1 Protection 25 | . 3 1 . 6 1 . . . . . . . . . . . . . 5 2 1 2 4 Artifact 1 | . . . . . . . . . . . . . . . . . . . . 1 . . . Weapon 75 | 3 3 6 2 13 3 1 . 3 2 1 1 . 1 2 1 . . 1 12 5 3 7 5 Energy Gun 26 | 3 1 . . 4 1 . . 2 1 . 1 . 1 2 . . . . 6 . . 3 1 Energy Cannon 11 | . 2 1 1 2 . . . . . . . . . . . . . . . 2 1 2 . Ballistic Gun 12 | . . . . 2 1 . . . . 1 . . . . 1 . . 1 2 1 . . 3 Ballistic Cannon 7 | . . 4 . . . . . . . . . . . . . . . . 1 1 . 1 . Launcher 6 | . . . . 2 . . . . . . . . . . . . . . 1 . 1 1 1 Special Weapon 6 | . . 1 . 1 1 1 . 1 . . . . . . . . . . 1 . . . . Impact Weapon 2 | . . . . 1 . . . . . . . . . . . . . . . . 1 . . Slashing Weapon 2 | . . . . . . . . . . . . . . . . . . . 1 1 . . . Piercing Weapon . | . . . . . . . . . . . . . . . . . . . . . . . . Special Melee Weapon 3 | . . . 1 1 . . . . 1 . . . . . . . . . . . . . . Unidentified Prototypes 43 | . . . . 1 1 . . . . . . 4 . 1 1 . 4 . 4 6 2 13 6 Corrupted Parts 2 | . . . . . . . . 1 . . . . . . . . . . . . . . 1 System Corruption 4 | . . . . . . . . 1 . . . . . . . . . . . . . . 3 Parts Lost 68 | . 1 . . 7 . . . . . . . . . 1 1 1 . . 14 6 5 3 29 Power 11 | . . . . 1 . . . . . . . . . . . . . . 1 2 2 . 5 Propulsion 10 | . . . . . . . . . . . . . . . . . . . . . . 1 9 Utility 31 | . . . . 3 . . . . . . . . . . 1 . . . 7 4 3 2 11 Weapon 16 | . 1 . . 3 . . . . . . . . . 1 . 1 . . 6 . . . 4 Highest Loss Streak 7 | . 1 . . 3 . . . . . . . . . 1 1 1 . . 4 4 5 2 7 To Critical Strikes 2 | . . . . . . . . . . . . . . . . . . . . . . . 2 Average Backups 17 | 3 12 17 15 16 16 15 15 14 15 16 16 16 17 16 17 17 17 18 20 24 23 21 20 Power . | . 1 . . 1 . . . . . 1 1 1 1 1 1 1 . . 1 1 . . 1 Propulsion 1 | 1 3 2 2 1 1 1 2 . . . . . . . 1 . . . . . . 1 . Utility 7 | . 4 6 4 4 6 5 5 6 7 8 7 7 7 5 7 9 11 12 8 10 11 7 7 Weapon 5 | . 2 5 4 5 5 5 6 6 5 5 5 5 5 5 4 3 2 2 5 7 7 9 9 Tool/Special . | . . . . . . . . . . . . . . . . . . . . . . . . Unused Backups 64 | . 6 6 5 4 1 3 . . 2 . 1 2 1 1 4 1 1 2 11 5 2 2 4 Power 6 | . 2 . . 1 . . . . . . . . . . . . 1 . 1 1 . . . Propulsion 6 | . 2 1 . 1 . . . . . . . . . . 2 . . . . . . . . Utility 27 | . 1 . 2 1 1 3 . . 2 . 1 2 1 . 2 1 . 1 4 1 1 1 2 Weapon 23 | . . 5 3 1 . . . . . . . . . 1 . . . 1 6 2 1 1 2 Tool/Special 2 | . 1 . . . . . . . . . . . . . . . . . . 1 . . . Average Slot Usage (%) 84 | . 97 100 99 77 73 73 73 84 82 76 76 75 76 77 78 78 78 78 80 76 80 82 73 Engine 4 | . 14 14 14 3 . . . . . 3 . . . . . . . . . . . . 1 Core 2 | . . . . 7 8 6 6 6 5 1 5 2 . . 4 5 5 5 3 . . 3 . Reactor 5 | . . . . . 3 6 6 6 5 5 5 7 11 10 5 5 5 5 8 13 12 8 10 Treads 9 | . 27 26 26 . . . . . . . . . . . . . . . . . 3 7 6 Wheel 6 | . . 1 1 5 6 6 6 18 17 11 11 11 11 10 10 10 10 10 9 9 8 7 8 Device 14 | . . 11 . 9 13 13 13 19 17 17 17 16 17 25 26 26 22 21 22 23 26 18 10 Storage 7 | . 14 14 14 5 6 6 6 6 5 5 5 5 5 5 5 5 5 5 4 4 4 4 4 Processor 4 | . . . . 5 6 6 6 6 5 5 5 5 5 5 5 5 8 10 10 7 4 6 7 Hackware 1 | . . . . 2 . . . . . . . . . . . . . . . . . 10 2 Protection 5 | . 11 2 14 9 6 6 6 . 5 5 5 5 5 4 5 5 5 5 3 4 3 4 9 Energy Gun 5 | . 9 . . 8 12 13 10 13 11 11 11 7 10 9 9 10 10 10 7 . . . 3 Energy Cannon 5 | . 18 16 1 6 . . . . . . . . . . . . . . . 1 3 1 1 Ballistic Gun 2 | . . . . 4 5 5 6 6 3 4 4 5 4 4 5 4 5 5 4 . . . 1 Ballistic Cannon 3 | . . 8 25 1 . . . . . . . . . . . . . . . 1 . . 1 Peak Build Rating 209 | 6 14 19 24 98 98 98 97 97 88 95 104 108 109 123 123 123 125 122 143 176 195 201 209 Average Rating 95 | 4 11 15 19 89 97 97 95 78 86 94 100 102 107 119 120 122 121 121 133 160 190 187 181 On Entrance 95 | . 6 14 18 23 93 98 97 97 76 84 94 104 108 108 122 122 123 119 121 141 176 137 201 Avg Prop Armor Cover (%) 9 | . . 10 8 . . . . . . . . . . . . . . . . . 5 13 8 Naked Turns . | . . . . . . . . . . . . . . . . . . . . . . . . Heaviest Build 224 | 12 42 62 65 103 99 100 99 99 101 97 107 113 115 117 120 119 119 118 188 203 208 203 224 Greatest Support 120 | 40 43 46 46 30 30 30 30 36 36 40 40 40 40 40 40 40 40 40 40 40 68 40 120 Greatest Overweight (x) 13 | . 1 3 4 3 3 3 3 5 2 2 2 5 2 2 2 2 5 2 4 8 5 11 13 Average Overweight (x) 2 | . . 1 1 2 2 3 3 2 2 2 2 2 2 2 2 2 2 2 3 4 4 5 5 Largest Inventory Capacity 25 | 8 15 20 20 20 20 20 20 20 20 20 20 20 20 20 20 20 20 20 25 25 25 25 25 Average Capacity 21 | 7 14 19 20 20 20 20 20 20 20 20 20 20 20 20 20 20 20 20 23 25 25 25 25 Most Carried 25 | 7 15 20 20 20 20 20 20 20 20 20 20 20 20 20 20 20 20 20 25 25 25 25 25 Average Carried 20 | 3 12 19 19 19 19 19 20 19 19 19 19 19 19 19 19 19 19 19 21 24 24 24 23 Final Capacity 25 | 8 15 20 20 20 20 20 20 20 20 20 20 20 20 20 20 20 20 20 25 25 25 25 25 Final Carried 25 | 7 15 20 20 20 20 20 20 20 20 20 20 20 20 20 20 20 20 20 25 25 24 23 22 Scrap Suit Usage (%) 7 | . . . . . . . . 86 97 . . . . 4 1 1 . 21 1 1 1 . 11 Parts Cannibalized 62 | . . . . . . . . . 6 . . . . 27 2 2 . 1 10 3 1 . 10 Class Distribution -------------------- 34% | Mutant 29% | Scavenger-Scrapper 7% | Scavenger-Mutant 5% | Scavenger-Tank 5% | Commander-Skirmisher 4% | Tank 3% | Commander-Scrapper 3% | Scavenger-Gladiator Dominant Class ---------------- Mutant | -10/Materials Mutant | -10/Subcaves Mutant | -9/Scraptown Tank | -6/Factory Commander-Skirmisher | -6/Lower Caves Commander-Skirmisher | -6/Lower Caves Commander-Skirmisher | -6/Data Miner Scavenger-Scrapper | -5/Proximity Caves Scavenger-Scrapper | -5/Factory Commander-Scrapper | -5/Upper Caves Scavenger-Scrapper | -5/Upper Caves Scavenger-Scrapper | -5/Zhirov Scavenger-Scrapper | -4/Proximity Caves Scavenger-Scrapper | -4/Factory Scavenger-Scrapper | -4/Upper Caves Scavenger-Scrapper | -4/Upper Caves Scavenger-Scrapper | -4/Warlord Scavenger-Scrapper | -3/Proximity Caves Scavenger-Scrapper | -3/Research Mutant | -3/Quarantine Scavenger-Mutant | -2/Research Hacker-Gladiator | -2/Testing Scavenger-Tank | -2/Protoforge Resources | -11 -10 -10 -9 -6 -6 -6 -6 -5 -5 -5 -5 -5 -4 -4 -4 -4 -4 -3 -3 -3 -2 -2 -2 ----------- Run | Yrd Mat Sub Scr Fac Low Low Dat Pro Fac Upp Upp Zhi Pro Fac Upp Upp War Pro Res Qua Res Tes Frg Matter Collected 16517 | 244 212 1249 194 1063 382 123 . 175 578 148 154 . 404 818 343 266 60 266 1983 655 681 1224 5295 Remotely 2654 | . . . . . . . . . . . . . . . . . . . . . 195 250 2209 Salvage Created 26141 | 139 614 568 . 2660 284 153 . 72 1304 20 133 . 480 3159 310 837 . 380 4700 878 820 2111 6519 Parts 1086 | 10 35 23 . 81 9 13 . 2 27 2 6 . 28 124 12 17 . 8 222 47 42 113 265 Haulers Intercepted 5 | . 1 . . 2 . . . . . . . . . 1 1 . . . . . . . . Recyclers Shooed 12 | . . . . . . . . . 2 . . . . 7 . . . . 2 . . 1 . Parts Field Recycled . | . . . . . . . . . . . . . . . . . . . . . . . . Retrieved Matter . | . . . . . . . . . . . . . . . . . . . . . . . . Parts Self-Destructed 194 | . . 13 . . 12 6 . 18 . 18 4 . 50 . 34 10 . 29 . . . . . Prevented 2 | . . . . . . . . . . 2 . . . . . . . . . . . . . Parts Restored . | . . . . . . . . . . . . . . . . . . . . . . . . Kills | -11 -10 -10 -9 -6 -6 -6 -6 -5 -5 -5 -5 -5 -4 -4 -4 -4 -4 -3 -3 -3 -2 -2 -2 ------- Run | Yrd Mat Sub Scr Fac Low Low Dat Pro Fac Upp Upp Zhi Pro Fac Upp Upp War Pro Res Qua Res Tes Frg Combat Hostiles Destroyed 388 | . 17 16 . 45 4 4 . 1 22 1 4 . 16 37 3 12 . 3 61 11 12 18 101 Melee 18 | . 1 . . . . . . . . . . . . . . . . . . 1 2 14 . Guns 141 | . 5 . . 6 1 . . 1 15 1 . . 4 25 2 9 . 3 43 . . 1 25 Cannons 82 | . 5 14 . 8 . . . . . . . . . . . . . . 6 2 2 3 42 AOE 105 | . 3 . . 24 2 4 . . 3 . 4 . 12 8 1 3 . . . . 8 . 33 Classes Destroyed 28 | 2 6 2 . 7 . 1 . 1 . . . . . 1 . . . . 1 . 1 1 5 Worker 28 | . 2 . . 1 . . . . . . . . . 13 . . . . 9 . . 3 . Builder 21 | . 1 . . 3 . . . . 1 . . . . 5 . . . . 7 1 . . 3 Tunneler 4 | 2 . . . 1 . . . . . . . . . 1 . . . . . . . . . Hauler 5 | . 1 . . 2 . . . . . . . . . 1 1 . . . . . . . . Recycler 12 | 1 . . . 3 . . . . . . . . . 3 . . . . 2 . 1 2 . Mechanic 11 | . . . . . . . . . . . . . . . . . . . . . 1 1 9 Operator 8 | . 2 . . . . . . . . . . . . . . . . . 1 . 1 3 1 Drone 6 | . . . . . . . . 1 . . . . . . . . . . . . . . 5 Watcher 7 | . . . . 1 . . . . . . . . . 2 . . . . 2 . . . 2 Swarmer 71 | . 6 2 . 7 2 4 . . . 1 4 . 12 5 . 8 . . 8 . . . 12 Saboteur 2 | . . . . . . . . . . . . . . . . . . . 1 . . . 1 Grunt 133 | . 11 3 . 28 . . . 1 14 . . . 3 14 3 3 . 3 16 4 8 6 16 Brawler 6 | . . . . 1 . . . . . . . . . . . 1 . . . . . . 4 Duelist 5 | . . . . . . . . . . . . . . 1 . . . . 1 . . . 3 Protector 2 | . . . . . . . . . . . . . . . . . . . . . . . 2 Researcher 1 | . . . . . . . . . . . . . . . . . . . . . . 1 . Sentry 20 | . . . . 3 . . . . 2 . . . 1 3 . . . . 9 . . . 2 Specialist 2 | . . . . . . . . . . . . . . . . . . . . . . . 2 Hunter 34 | . . . . 3 2 . . . . . . . . 6 . . . . 6 . . 2 15 Programmer 54 | . . . . 1 . . . . 6 . . . . 7 . . . . 19 1 4 11 5 Heavy 1 | . . . . 1 . . . . . . . . . . . . . . . . . . . Behemoth 3 | . . . . 1 . . . . . . . . . 1 . . . . 1 . . . . Quarantine Guard 6 | . . . . . . . . . . . . . . . . . . . . 6 . . . Hotshot 9 | . . . . . . . . . . . . . . . . . . . . . . . 9 Decapitator 3 | . . . . . . . . . . . . . . . . . . . . . . . 3 Striker 6 | . . . . . . . . . . . . . . . . . . . . . . . 6 Executioner 16 | . . . . . . . . . . . . . . . . . . . . . . . 16 Artisan 1 | . . 1 . . . . . . . . . . . . . . . . . . . . . Subdweller 11 | . . 11 . . . . . . . . . . . . . . . . . . . . . Scrapoid 1 | . . . . . . 1 . . . . . . . . . . . . . . . . . Decomposer 2 | . . . . . . 1 . . . . 1 . . . . . . . . . . . . Packrat 1 | . . . . . . . . . . . 1 . . . . . . . . . . . . Best Kill Streak 25 | 2 7 2 . 5 2 4 . 1 4 1 4 . 7 21 2 5 . 2 14 3 7 3 25 Combat Bots Only 24 | . 5 2 . 5 2 4 . 1 4 1 4 . 7 10 2 5 . 2 10 3 7 3 24 Max Kills in Single Turn 7 | 1 2 1 . 4 1 4 . 2 2 1 2 . 5 7 1 2 . 1 3 1 5 1 4 Gunslinging 1 | . 1 . . . . . . . . . . . . 1 . . . . 1 . . . . Exploded 5 | . 1 . . 4 1 4 . . 2 . 2 . 5 5 1 2 . . . . 5 . 4 Melee 1 | . 1 . . . . . . . . . . . . . . . . . . 1 1 1 . Uniques/NPCs Destroyed . | . . . . . . . . . . . . . . . . . . . . . . . . Combat | -11 -10 -10 -9 -6 -6 -6 -6 -5 -5 -5 -5 -5 -4 -4 -4 -4 -4 -3 -3 -3 -2 -2 -2 -------- Run | Yrd Mat Sub Scr Fac Low Low Dat Pro Fac Upp Upp Zhi Pro Fac Upp Upp War Pro Res Qua Res Tes Frg Hostile Shots Fired 2354 | . 68 37 . 300 45 9 . 1 70 1 4 . 28 217 14 27 . 13 473 127 80 183 657 Missed 690 | . 13 13 . 107 22 1 . 1 20 . 3 . 8 71 5 6 . 4 138 42 13 34 189 Hits 1664 | . 55 24 . 193 23 8 . . 50 1 1 . 20 146 9 21 . 9 335 85 67 149 468 Melee 36 | . . . . . . . . . . . . . . . . . . . 6 . . . 30 Projectile 1628 | . 55 24 . 193 23 8 . . 50 1 1 . 20 146 9 21 . 9 329 85 67 149 438 AOE 1 | . . . . . . . . . . . . . . . . . . . . . 1 . . Critical Strikes 99 | . . . . 5 . 1 . . 4 . . . 1 7 1 . . 3 21 5 7 16 28 Actively Blocked 2 | . . . . . . . . . . . . . . . . . . . 1 . . . 1 Part Disruptions 5 | . . . . . . . . . . . . . . . . . . . 2 1 1 1 . Actively Blocked 1 | . . . . . . . . . . . . . . . . . . . 1 . . . . Damage Taken 29383 | . 652 512 . 2490 155 146 . 23 764 9 12 . 395 1936 213 265 . 215 4859 1558 1710 2352 11117 Core 2537 | . 126 8 . 186 . . . . 27 . . . 11 151 . 10 . 29 365 260 182 62 1120 Absorbed by Shields 11086 | . . . . 479 131 54 . 12 266 4 3 . 69 1024 69 85 . 41 1935 1246 546 1311 3811 Reduced by Siege Mode 44 | . . . . . . . . . . . . . . . . . . . . . . 44 . Redirected to Core 377 | . . . . . . . . . . . . . . . . . . . . 218 159 . . Redirected to Shielding 808 | . . . . 125 . . . . . . . . . . . . . . 143 . . . 540 Regen/Repaired (Parts) 5575 | . 44 . . 153 . . . . 50 . . . . 219 16 19 16 1 92 637 203 871 3254 Core Remaining (%) 75 | 100 . . 46 . . . . 78 . . . . 96 . . . . 83 . 51 . . . Volleys Fired 1216 | 9 72 86 . 101 20 7 . 13 66 8 10 . 21 123 20 23 . 26 175 58 42 63 273 Largest 3 | 2 2 2 . 3 3 3 . 3 3 3 3 . 3 3 3 3 . 3 3 1 1 2 3 Hottest 240 | 90 112 112 . 219 183 183 . 183 240 240 232 . 232 232 240 240 . 240 240 113 113 180 236 Shots Fired 2370 | 10 113 137 . 206 35 11 . 19 171 14 18 . 53 334 45 47 . 51 502 52 42 67 443 Gun 1792 | 10 69 . . 119 31 7 . 17 169 14 16 . 49 333 41 43 . 51 480 1 8 24 310 Cannon 443 | . 44 108 . 69 . . . . . . . . . . . . . . 21 51 26 37 87 Launcher 80 | . . . . 18 2 2 . . 2 . 2 . 4 1 4 4 . . . . 5 . 36 Special 55 | . . 29 . . 2 2 . 2 . . . . . . . . . . 1 . 3 6 10 Kinetic 783 | . . 55 . 59 10 1 . 5 49 7 4 . 17 106 9 19 . 14 211 9 12 14 182 Thermal 1139 | 9 36 32 . 81 21 6 . 12 120 7 12 . 32 227 32 24 . 37 223 5 21 32 170 Explosive 71 | . . . . 9 2 2 . . 2 . 2 . 4 1 4 4 . . . . 5 . 36 Electromagnetic 351 | 1 77 50 . 57 . . . . . . . . . . . . . . 67 38 1 15 45 Robot Hit Streak 28 | 7 6 9 . 12 9 4 . 2 28 12 4 . 14 16 8 13 . 23 20 12 9 7 14 Robot Miss Streak 17 | 1 5 4 . 6 1 2 . 3 2 2 2 . 3 6 2 3 . 2 5 2 4 6 17 Penetration Max 2 | . . . . 1 1 1 . . 1 . . . . 2 . 1 . . 2 . . 1 2 Secondary Targets 36 | . 2 . . 1 1 . . 1 2 1 . . 1 5 1 4 . 2 12 . . . 3 Max Gunslinging Chain 1 | . 1 . . 1 1 . . 1 1 1 . . 1 1 1 1 . 1 1 . . . 1 Shots Hit Robots 1501 | 8 63 60 1 138 17 5 1 6 118 6 6 3 32 196 18 34 1 36 350 46 25 74 257 Core Hits 964 | 4 23 26 . 92 11 8 . 3 59 1 9 . 25 107 12 28 . 11 160 16 31 38 300 Critical Kills 79 | . . . . . 1 . . . 2 . . . . 7 1 1 . . 11 1 . 7 48 Critical Parts Destroyed 92 | . . . . . 3 . . . 4 . . . 1 5 1 . . 1 18 4 1 3 51 Critical Strikes 287 | 2 1 2 . 6 5 . . 1 18 . 1 . 8 41 6 2 . 6 59 6 1 14 108 Burn 99 | 2 . . . 4 1 . . 1 10 . 1 . 7 28 4 1 . 5 29 . . . 6 Meltdown 1 | . . . . . . . . . . . . . . . . . . . . . . . 1 Destroy 176 | . . . . . 4 . . . 8 . . . 1 13 2 1 . 1 29 5 1 10 101 Blast 3 | . . 2 . 1 . . . . . . . . . . . . . . . . . . . Corrupt 3 | . 1 . . 1 . . . . . . . . . . . . . . 1 . . . . Sever 5 | . . . . . . . . . . . . . . . . . . . . 1 . 4 . Melee Attacks 136 | . . . 1 11 . . 1 . 6 2 . 3 . 2 . . 1 . 2 25 16 61 5 Kinetic 4 | . . . . . . . . . . . . . . . . . . . . . 4 . . Impact 16 | . . . . 9 . . . . 4 2 . . . . . . . . 1 . . . . Slashing 104 | . . . . . . . . . . . . . . . . . . . 1 25 12 61 5 Piercing 2 | . . . . 2 . . . . . . . . . . . . . . . . . . . Sneak Attacks 30 | . . . 1 5 . . 1 . 2 . . 3 . 2 . . 1 . . 1 2 12 . Combat Hostiles 2 | . . . . 1 . . . . . . . . . . . . . . . . . 1 . Follow-up Attacks 3 | . . . . . . . . . . . . . . . . . . . . 3 . . . Damage Inflicted 66897 | 102 1649 1175 . 7546 561 348 . 60 2755 87 532 . 1786 8912 890 1463 . 1048 11100 2011 3593 5463 15816 Guns 32526 | 100 501 . . 1927 370 79 . 60 2311 87 191 . 986 7561 437 1180 . 1048 10646 . 42 124 4876 Cannons 6340 | . 672 1175 . 1376 . . . . . . . . . . . . . . 454 1289 134 131 1109 Explosions 20438 | . 440 . . 3762 191 269 . . 444 . 341 . 800 1351 453 283 . . . . 2196 175 9733 Melee 7555 | . . . . 481 . . . . . . . . . . . . . . . 722 1221 5033 98 Ramming 38 | 2 36 . . . . . . . . . . . . . . . . . . . . . . Kinetic 15363 | . . 708 . 2115 55 13 . 14 264 20 32 . 328 2562 162 622 . 249 4704 154 266 103 2992 Thermal 21258 | 100 656 . . 2196 315 66 . 46 2047 67 159 . 658 5373 275 558 . 799 5038 . 97 267 2541 Explosive 17062 | . . . . 1525 191 269 . . 444 . 341 . 800 977 453 283 . . . . 2196 . 9583 Electromagnetic 5845 | . 957 467 . 1229 . . . . . . . . . . . . . . 1358 1135 37 60 602 Impact 479 | . . . . 479 . . . . . . . . . . . . . . . . . . . Slashing 6850 | . . . . . . . . . . . . . . . . . . . . 722 997 5033 98 Piercing 2 | . . . . 2 . . . . . . . . . . . . . . . . . . . Highest Corruption 32 | . . . . . . . . 1 8 8 . . . 3 3 . . 1 27 32 4 6 18 Average Corruption 8 | . . . . . . . . 1 4 5 . . . 2 2 . . 1 11 30 2 3 9 Corruption Purged 27 | . . . . . . . . . . 8 . . . . 3 . . . . . 4 12 . Corruption Blocked 1 | . . . . . . . . . . . . . . . . . . . 1 . . . . Effects 338 | . . . . . . . . . 14 4 . . . 20 5 . . 6 72 63 4 35 115 Message Errors 68 | . . . . . . . . . 2 2 . . . 1 3 . . 1 15 11 . 8 25 Matter Fused 76 | . . . . . . . . . 4 . . . . 6 1 . . 2 15 18 1 7 22 Heat Flow Errors 37 | . . . . . . . . . 2 1 . . . 3 . . . . 3 7 2 3 16 Energy Discharges 37 | . . . . . . . . . 2 . . . . 5 . . . 2 5 4 1 9 9 Parts Rejected 10 | . . . . . . . . . . . . . . . . . . . 4 3 . . 3 Parts Fused 3 | . . . . . . . . . . . . . . . . . . . . 1 . 1 1 Data Loss (minor) 37 | . . . . . . . . . 2 1 . . . 2 . . . . 9 5 . 2 16 Data Loss (major) 13 | . . . . . . . . . . . . . . . . . . . 2 2 . 2 7 Misfires 10 | . . . . . . . . . 1 . . . . . . . . 1 4 1 . 3 . Alerts 10 | . . . . . . . . . . . . . . . 1 . . . 4 1 . . 4 Misdirections 7 | . . . . . . . . . . . . . . . . . . . 3 3 . . 1 Weapon Failures 30 | . . . . . . . . . 1 . . . . 3 . . . . 8 7 . . 11 Overload Shots 4 | . . . . . . . . . . . . . . . . . . . . . . . 4 Overflow Damage 2370 | . 87 . . 335 27 . . . . . . . . 86 . . . . 16 256 414 714 435 Projectiles 209 | . 49 . . 39 . . . . . . . . . . . . . . 16 . . . 105 Explosions 711 | . 38 . . 170 27 . . . . . . . . 86 . . . . . . 60 . 330 Melee 1450 | . . . . 126 . . . . . . . . . . . . . . . 256 354 714 . Knockbacks 44 | . . 2 . 1 . . . . . . . . . . . . . . 4 . . . 37 Impact . | . . . . . . . . . . . . . . . . . . . . . . . . Kinetic 43 | . . 2 . 1 . . . . . . . . . . . . . . 4 . . . 36 Secondary 1 | . . . . . . . . . . . . . . . . . . . . . . . 1 Self-Inflicted Damage 227 | . 30 . . 91 25 46 . . 35 . . . . . . . . . . . . . . Shots 9 | . 1 . . 5 1 1 . . 1 . . . . . . . . . . . . . . Rammed 10 | 1 9 . . . . . . . . . . . . . . . . . . . . . . Targets Rammed 12 | 1 11 . . . . . . . . . . . . . . . . . . . . . . Kicked . | . . . . . . . . . . . . . . . . . . . . . . . . Crushed 2 | . 2 . . . . . . . . . . . . . . . . . . . . . . Highest Temperature 485 | 80 485 42 . 338 156 126 . 184 288 261 336 . 393 223 141 280 . 220 426 40 . 200 342 Average Temperature 112 | 36 148 10 . 114 71 54 . 61 121 108 113 . 146 116 52 122 . 113 135 24 . 62 70 Received Heat Transfer 3180 | . 279 132 . 696 5 18 . . 96 . . . 339 222 268 . . 51 466 65 46 48 449 Effects 16 | . 5 . . 4 . . . . 6 . . . . . . . . . 1 . . . . Shutdowns 1 | . . . . 1 . . . . . . . . . . . . . . . . . . . Energy Bleed 5 | . 1 . . 1 . . . . 3 . . . . . . . . . . . . . . Interference 5 | . . . . 1 . . . . 3 . . . . . . . . . 1 . . . . Short Circuit 3 | . 2 . . 1 . . . . . . . . . . . . . . . . . . . Damage (major) 2 | . 2 . . . . . . . . . . . . . . . . . . . . . . Siege Activations 1 | . . . . . . . . . . . . . . . . . . . . . . 1 . Total Turns 23 | . . . . . . . . . . . . . . . . . . . . . . 23 . Longest Duration 23 | . . . . . . . . . . . . . . . . . . . . . . 23 . Martial Activations . | . . . . . . . . . . . . . . . . . . . . . . . . Shielding Activations . | . . . . . . . . . . . . . . . . . . . . . . . . Robots Disrupted 10 | . . . . . . . . . . . . . . . . . . . . . . 3 7 Combat Hostiles 9 | . . . . . . . . . . . . . . . . . . . . . . 3 6 Robots Corrupted 27 | . 3 2 . 7 . . . . . . . . . . . . . . 6 8 . . 1 Combat Hostiles 23 | . 2 2 . 5 . . . . . . . . . . . . . . 6 8 . . . Parts Fried 50 | . 4 4 . 17 . . . . . . . . . . . . . . 6 16 . 1 2 Impact Corruptions 3 | . . . . 3 . . . . . . . . . . . . . . . . . . . Robots Melted 20 | . 1 . . 2 1 . . . 4 . . . . 5 . . . . 6 . . . 1 Combat Hostiles 18 | . 1 . . 2 1 . . . 4 . . . . 4 . . . . 6 . . . . Parts Melted 132 | 1 1 . . 12 5 . . . 21 1 . . 8 27 . 3 . 5 43 2 . . 3 Heat Transferred 43733 | 444 1044 . . 3750 800 150 . 200 5400 150 400 . 1850 10700 900 1100 . 1900 11162 . 74 174 3535 Parts Sabotaged 1 | . . . . . . . . . . . . . . . . . . . . . . . 1 Parts Stolen . | . . . . . . . . . . . . . . . . . . . . . . . . Parts Stripped . | . . . . . . . . . . . . . . . . . . . . . . . . Power Chain Reactions 8 | . 4 . . 1 . . . . . . . . . . . . . . . . . 1 2 Alert | -11 -10 -10 -9 -6 -6 -6 -6 -5 -5 -5 -5 -5 -4 -4 -4 -4 -4 -3 -3 -3 -2 -2 -2 ------- Run | Yrd Mat Sub Scr Fac Low Low Dat Pro Fac Upp Upp Zhi Pro Fac Upp Upp War Pro Res Qua Res Tes Frg Maximum Alert Level 5 | . . . . 4 . . . . 3 . . . . 3 . . . . 5 4 3 2 5 Low Security (%) 19 | 100 100 . . 14 . . . . 54 . . . . 17 . . . . 20 . . . . Level 1 15 | . . . . 11 . . . . 32 . . . . 11 . . . . . . 1 51 15 Level 2 31 | . . . . 17 . . . . 9 . . . . 26 . . . . 21 . 72 48 54 Level 3 20 | . . . . 36 . . . . 2 . . . . 43 . . . . 17 94 26 . 8 Level 4 9 | . . . . 19 . . . . . . . . . . . . . . 33 5 . . 7 Level 5 3 | . . . . . . . . . . . . . . . . . . . 3 . . . 14 High Security . | . . . . . . . . . . . . . . . . . . . 2 . . . . Max Security . | . . . . . . . . . . . . . . . . . . . . . . . . Peak Influence 2810 | 10 174 . . 1563 . . . . 709 . . . . 967 . . . . 1659 1115 1017 571 2810 Initial 1100 | . . . . . . . . . 150 . . . . 27 . . . . . 1100 589 533 288 Average 616 | 1 74 . . 728 . . . . 245 . . . . 578 . . . . 825 1026 593 404 837 Influence Increases 16854 | 15 535 150 . 2220 260 231 . 196 1261 372 189 . 526 1395 455 380 . 208 2413 448 984 998 3618 Destroy 0b10 Robot/C 8720 | . 340 100 . 920 160 140 . 120 540 180 120 . 360 740 280 260 . 120 1220 220 460 440 2000 Destroy 0b10 Robot/NC 565 | 15 30 . . 55 . . . 10 5 . . . . 130 5 15 . 5 105 5 15 60 110 Destroy Leader 1624 | . 72 20 . 216 20 20 . 20 100 30 10 . 50 146 20 30 . 30 264 70 90 72 344 Allied During Kill 1243 | . . . . 10 80 71 . 46 172 162 59 . 101 . 150 45 . 53 24 . 173 41 56 Trap Triggered on 0b10 60 | . 10 . . . . . . . 30 . . . . . . . . . 20 . . . . Successful Hack 297 | . 8 . . 69 . . . . 24 . . . . 30 . . . . 97 2 . 28 39 Disable Machine 1290 | . 45 . . 300 . . . . 105 . . . . 90 . . . . 150 75 30 195 300 Anti-Garrison Action 400 | . . . . 200 . . . . . . . . . . . . . . 200 . . . . Destroy Structure 1590 | . 15 . . 210 . . . . 120 . . . . 244 . . . . 138 16 201 117 529 Advance Influence 150 | . . . . . . . . . 150 . . . . . . . . . . . . . . Partial Spotted 15 | . . . . . . . . . . . . . . . . . . . . . 15 . . Lose Combat Pursuer 900 | . 15 30 . 240 . . . . 15 . . . 15 15 . 30 . . 195 60 . 45 240 Influence Decreases 14211 | 15 410 195 80 660 1108 528 415 196 564 675 450 133 482 486 827 514 447 208 754 1226 1083 1434 1321 Entered New Map 4493 | . . 61 80 . 578 136 415 . . 259 76 133 . 17 353 112 447 . . 726 459 416 225 Time Decay 8092 | 15 400 134 . 590 490 392 . 136 464 416 334 . 430 435 464 392 . 168 554 440 474 658 706 Lost Part 680 | . 10 . . 70 . . . . . . . . . 10 10 10 . . 140 60 50 30 290 Lost Ally 646 | . . . . . 40 . . 60 100 . 40 . 52 24 . . . 40 60 . 100 30 100 Purge Threat 300 | . . . . . . . . . . . . . . . . . . . . . . 300 . Squads Dispatched 96 | . 3 . . 18 . . . . 10 . . . . 9 . . . . 21 2 12 8 13 Investigation 35 | . 1 . . 10 . . . . 8 . . . . 5 . . . . 4 1 2 1 3 Extermination 26 | . . . . 3 . . . . 2 . . . . 2 . . . . 6 1 3 6 3 Reinforcement 19 | . 2 . . 5 . . . . . . . . . 1 . . . . 2 . 2 . 7 Assault 10 | . . . . . . . . . . . . . . 1 . . . . 3 . 5 1 . Garrison 6 | . . . . . . . . . . . . . . . . . . . 6 . . . . Intercept . | . . . . . . . . . . . . . . . . . . . . . . . . Searches Triggered . | . . . . . . . . . . . . . . . . . . . . . . . . Data Miner Redirects 7 | . . . . . . . . . 1 . . . . 2 . . . . 4 . . . . Construction Impeded 7 | . . . . 3 . . . . . . . . . . . . . . 2 . . . 2 Haulers Reinforced 2 | . . . . . . . . . . . . . . 1 . . . . . . 1 . . Active Scanning Responses . | . . . . . . . . . . . . . . . . . . . . . . . . Cargo Convoy Interrupts . | . . . . . . . . . . . . . . . . . . . . . . . . Stealth | -11 -10 -10 -9 -6 -6 -6 -6 -5 -5 -5 -5 -5 -4 -4 -4 -4 -4 -3 -3 -3 -2 -2 -2 --------- Run | Yrd Mat Sub Scr Fac Low Low Dat Pro Fac Upp Upp Zhi Pro Fac Upp Upp War Pro Res Qua Res Tes Frg Distress Signals 25 | . . . . 2 . . . . 4 . . . . 4 . . . . 5 . 2 1 7 Communications Jammed 178 | . . . . . . . . . . . . . . 138 . . . . . . 7 33 . Distress Signals 174 | . . . . . . . . . . . . . . 138 . . . . . . 3 33 . Times Spotted 641 | . 27 13 . 72 10 8 . 8 32 3 6 . 23 49 11 12 . 9 89 16 34 33 186 Peak Tracking Total 13 | . 5 4 . 7 3 4 . 6 6 3 4 . 5 8 5 5 . 4 6 5 8 5 13 Tactical Retreats 39 | . 1 1 . 10 . . . . 1 . . . 1 1 . 1 . . 6 3 . 2 12 Traps | -11 -10 -10 -9 -6 -6 -6 -6 -5 -5 -5 -5 -5 -4 -4 -4 -4 -4 -3 -3 -3 -2 -2 -2 ------- Run | Yrd Mat Sub Scr Fac Low Low Dat Pro Fac Upp Upp Zhi Pro Fac Upp Upp War Pro Res Qua Res Tes Frg Traps Triggered 29 | . 1 1 . 2 . . . . 2 . . . . 1 . . . . 4 4 2 3 9 Indirectly . | . . . . . . . . . . . . . . . . . . . . . . . . Trap Hack Attempts 189 | . . . . . . . . . 153 . . . . . . . . . 36 . . . . Triggered . | . . . . . . . . . . . . . . . . . . . . . . . . Disarmed . | . . . . . . . . . . . . . . . . . . . . . . . . Reprogrammed 17 | . 6 . . . . . . . 8 . . . . . . . . . 3 . . . . Reused 6 | . 1 . . . . . . . 3 . . . . . . . . . 2 . . . . Traps Extracted . | . . . . . . . . . . . . . . . . . . . . . . . . Installed . | . . . . . . . . . . . . . . . . . . . . . . . . Triggered 6 | . 1 . . . . . . . 3 . . . . . . . . . 2 . . . . Machines | -11 -10 -10 -9 -6 -6 -6 -6 -5 -5 -5 -5 -5 -4 -4 -4 -4 -4 -3 -3 -3 -2 -2 -2 ---------- Run | Yrd Mat Sub Scr Fac Low Low Dat Pro Fac Upp Upp Zhi Pro Fac Upp Upp War Pro Res Qua Res Tes Frg Machines Disabled 95 | . 3 1 . 20 . . . . 7 1 . . 3 6 . . . . 10 5 2 15 22 Max in Single Turn 8 | . 1 1 . 8 . . . . 4 1 . . 2 4 . . . . 1 1 1 1 2 Garrison Access 6 | . . . . 2 . . . . . . . . . . . . . . 2 . 1 1 . Machines Repaired . | . . . . . . . . . . . . . . . . . . . . . . . . Machines Dismantled . | . . . . . . . . . . . . . . . . . . . . . . . . Machines Sabotaged . | . . . . . . . . . . . . . . . . . . . . . . . . Overloaded Fab Kills . | . . . . . . . . . . . . . . . . . . . . . . . . Hacking | -11 -10 -10 -9 -6 -6 -6 -6 -5 -5 -5 -5 -5 -4 -4 -4 -4 -4 -3 -3 -3 -2 -2 -2 --------- Run | Yrd Mat Sub Scr Fac Low Low Dat Pro Fac Upp Upp Zhi Pro Fac Upp Upp War Pro Res Qua Res Tes Frg Machines Accessed 112 | . 6 2 . 22 1 . 3 1 9 . 1 4 . 11 . 1 2 . 17 9 9 6 8 Terminals 40 | . 4 . . 6 . . . 1 2 . . . . 6 . . . . 5 4 4 4 4 Fabricators 6 | . . . . 3 . . . . 1 . . . . . . . . . 2 . . . . Repair Stations 9 | . 1 . . 2 . . . . . . . . . . . . . . 2 2 1 . 1 Recycling Units 23 | . 1 . . 7 . . . . 5 . . . . 5 . . . . 2 . 2 . 1 Scanalyzers 11 | . . . . 2 . . . . . . . . . . . . . . 3 2 1 1 2 Garrison Access 9 | . . . . 2 . . . . 1 . . . . . . . . . 3 1 1 1 . Total Hacks 255 | . 18 5 . 45 1 . 25 1 16 . 1 17 . 22 . 1 6 . 38 16 11 14 18 Successful 141 | . 11 5 . 25 1 . 25 1 8 . 1 17 . 9 . 1 6 . 14 2 2 7 6 Failed 112 | . 6 . . 20 . . . . 8 . . . . 13 . . . . 24 13 9 7 12 Catastrophic 29 | . . . . 3 . . . . 2 . . . . 5 . . . . 7 3 3 2 4 Database Lockouts 2 | . 1 . . . . . . . . . . . . . . . . . . 1 . . . Manual 93 | . 6 . . 20 . . . . 7 . . . . 12 . . 1 . 19 3 7 6 12 Terminals 82 | . 12 . . 14 . . . 1 4 . . . . 10 . . . . 11 7 4 9 10 Fabricators 16 | . . . . 8 . . . . 3 . . . . . . . . . 5 . . . . Repair Stations 14 | . 2 . . 3 . . . . . . . . . . . . . . 4 2 1 . 2 Recycling Units 45 | . 4 . . 12 . . . . 7 . . . . 12 . . . . 5 . 4 . 1 Scanalyzers 26 | . . . . 5 . . . . . . . . . . . . . . 8 5 1 2 5 Garrison Access 16 | . . . . 3 . . . . 2 . . . . . . . . . 5 2 1 3 . Terminal Hacks 77 | . 7 5 . 4 1 . 25 1 . . 1 17 . 2 . 1 6 . 1 . . 5 1 Record 17 | . . 4 . . 1 . 6 1 . . . 5 . . . . . . . . . . . Part Schematic 14 | . . . . . . . 10 . . . . 4 . . . . . . . . . . . Robot Schematic 6 | . . . . . . . 6 . . . . . . . . . . . . . . . . Robot Analysis 7 | . 3 . . . . . . . . . . 4 . . . . . . . . . . . Prototype ID Bank 12 | . . . . . . . 3 . . . . 4 . . . . 5 . . . . . . Open Door 4 | . . . . . . . . . . . 1 . . . . 1 1 . . . . 1 . Branch Access Points 2 | . . . . 1 . . . . . . . . . 1 . . . . . . . . . Recycling Unit Index 1 | . . . . . . . . . . . . . . . . . . . . . . 1 . Unreport Threat 2 | . . . . . . . . . . . . . . . . . . . . . . 2 . Locate Traps 6 | . 2 . . 2 . . . . . . . . . 1 . . . . 1 . . . . Reprogram Traps 1 | . 1 . . . . . . . . . . . . . . . . . . . . . . Registered Prototypes 1 | . . . . 1 . . . . . . . . . . . . . . . . . . . Zone Layout 3 | . 1 . . . . . . . . . . . . . . . . . . . . 1 1 Proto ID Catalog 1 | . . 1 . . . . . . . . . . . . . . . . . . . . . Fabricator Hacks 4 | . . . . 1 . . . . 2 . . . . . . . . . 1 . . . . Network Status 2 | . . . . 1 . . . . . . . . . . . . . . 1 . . . . Load Schematic 1 | . . . . . . . . . 1 . . . . . . . . . . . . . . Build 1 | . . . . . . . . . 1 . . . . . . . . . . . . . . Repair Station Hacks 5 | . 2 . . 2 . . . . . . . . . . . . . . 1 . . . . Scan Component 3 | . 1 . . 1 . . . . . . . . . . . . . . 1 . . . . Repair 2 | . 1 . . 1 . . . . . . . . . . . . . . . . . . . Recycling Unit Hacks 6 | . 2 . . 1 . . . . 1 . . . . 2 . . . . . . . . . Retrieve Components 6 | . 2 . . 1 . . . . 1 . . . . 2 . . . . . . . . . Scanalyzer 13 | . . . . 3 . . . . . . . . . . . . . . 6 2 . 1 1 Insert Component 1 | . . . . . . . . . . . . . . . . . . . . 1 . . . Retrieve Study 12 | . . . . 3 . . . . . . . . . . . . . . 6 1 . 1 1 Garrison Access Hacks 3 | . . . . 1 . . . . . . . . . . . . . . 1 . . 1 . Seal Access 3 | . . . . 1 . . . . . . . . . . . . . . 1 . . 1 . Unauthorized Hacks 33 | . . . . 13 . . . . 5 . . . . 5 . . . . 4 . 2 . 4 Terminals 5 | . . . . 1 . . . . . . . . . . . . . . 2 . . . 2 Track 2 | . . . . . . . . . . . . . . . . . . . . . . . 2 Assimilate 1 | . . . . . . . . . . . . . . . . . . . 1 . . . . Botnet 2 | . . . . 1 . . . . . . . . . . . . . . 1 . . . . Fabricators 5 | . . . . 4 . . . . . . . . . . . . . . 1 . . . . Liberate 3 | . . . . 3 . . . . . . . . . . . . . . . . . . . Haulers 2 | . . . . 1 . . . . . . . . . . . . . . 1 . . . . Repair Stations 1 | . . . . . . . . . . . . . . . . . . . . . . . 1 Patch 1 | . . . . . . . . . . . . . . . . . . . . . . . 1 Recycling Units 19 | . . . . 7 . . . . 4 . . . . 5 . . . . . . 2 . 1 Fedlink 15 | . . . . 6 . . . . 3 . . . . 4 . . . . . . 1 . 1 Scrapoids 4 | . . . . 1 . . . . 1 . . . . 1 . . . . . . 1 . . Scanalyzers . | . . . . . . . . . . . . . . . . . . . . . . . . Garrison Access 3 | . . . . 1 . . . . 1 . . . . . . . . . 1 . . . . Reprogram 1 | . . . . . . . . . 1 . . . . . . . . . . . . . . Jam 2 | . . . . 1 . . . . . . . . . . . . . . 1 . . . . Data Cores Recovered 2 | . . . . . . . . . . . . . . . . . . . 1 . . 1 . Used 1 | . . . . . . . . . . . . . . . . . . . 1 . . . . Hacking Detections 68 | . 5 . . 13 . . . . 4 . . . . 7 . . . . 14 7 5 6 7 Full Trace Events 6 | . . . . . . . . . 3 . . . . . . . . . 3 . . . . Feedback Events . | . . . . . . . . . . . . . . . . . . . . . . . . Feedback Blocked . | . . . . . . . . . . . . . . . . . . . . . . . . Robot Schematics Acquired 10 | . . . . . . . 6 . . . . . . . . . . . . . . 4 . Robots Built 3 | . . . . . . . . . 3 . . . . . . . . . . . . . . Authchips . | . . . . . . . . . . . . . . . . . . . . . . . . Time 76 | . . . . . . . . . 76 . . . . . . . . . . . . . . Total Robot Build Rating 15 | . . . . . . . . . 15 . . . . . . . . . . . . . . Part Schematics Acquired 20 | . . . . . . . 10 . . . . 4 . . . . . . . . . 6 . Parts Built . | . . . . . . . . . . . . . . . . . . . . . . . . Authchips . | . . . . . . . . . . . . . . . . . . . . . . . . Time . | . . . . . . . . . . . . . . . . . . . . . . . . Total Part Build Rating . | . . . . . . . . . . . . . . . . . . . . . . . . Part Studies Acquired 12 | . . . . 3 . . . . . . . . . . . . . . 6 1 . 1 1 Parts Repaired 2 | . 1 . . 1 . . . . . . . . . . . . . . . . . . . Time 76 | . 26 . . 50 . . . . . . . . . . . . . . . . . . . Parts Recycled . | . . . . . . . . . . . . . . . . . . . . . . . . Recycled Matter . | . . . . . . . . . . . . . . . . . . . . . . . . Retrieved Matter . | . . . . . . . . . . . . . . . . . . . . . . . . Retrieved Components 18 | . . . . 6 . . . . 2 . . . . 10 . . . . . . . . . Parts Scanalyzed . | . . . . . . . . . . . . . . . . . . . . . . . . Part Schematics Acquired . | . . . . . . . . . . . . . . . . . . . . . . . . Parts Damaged . | . . . . . . . . . . . . . . . . . . . . . . . . Bothacking | -11 -10 -10 -9 -6 -6 -6 -6 -5 -5 -5 -5 -5 -4 -4 -4 -4 -4 -3 -3 -3 -2 -2 -2 ------------ Run | Yrd Mat Sub Scr Fac Low Low Dat Pro Fac Upp Upp Zhi Pro Fac Upp Upp War Pro Res Qua Res Tes Frg Used RIF Installer . | . . . . . . . . . . . . . . . . . . . . . . . . Robots Hacked 12 | . . . 1 . . . 1 . 1 . . 3 . . . . 1 . 1 . 2 2 . Non-combat 2 | . . . . . . . . . 1 . . . . . . . . . . . 1 . . Combat 6 | . . . 1 . . . 1 . . . . 3 . . . . 1 . . . . . . Robot Hacks Applied 8 | . . . 1 . . . 1 . 1 . . 3 . . . . 1 . . . 1 . . parse_system 6 | . . . 1 . . . 1 . . . . 3 . . . . 1 . . . . . . no_distress 1 | . . . . . . . . . 1 . . . . . . . . . . . . . . find_recycling 1 | . . . . . . . . . . . . . . . . . . . . . 1 . . Manual 4 | . . . . . . . . . . . . . . . . . . . 1 . 1 2 . Relay Couplers Released 6 | . . . . . . . . . . . . . . . . . . . 3 . 3 . . Machine Destruction 3 | . . . . . . . . . . . . . . . . . . . . . 3 . . Programmers 3 | . . . . . . . . . . . . . . . . . . . 3 . . . . Fabnet Peak Effective % . | . . . . . . . . . . . . . . . . . . . . . . . . Robots Rewired 14 | . . . . . 4 . . . . . . . . 1 . . . . . . . 4 5 Allies Hacked 2 | . . . . . . . . . . . . . . 2 . . . . . . . . . Hacks Repelled . | . . . . . . . . . . . . . . . . . . . . . . . . Allies | -11 -10 -10 -9 -6 -6 -6 -6 -5 -5 -5 -5 -5 -4 -4 -4 -4 -4 -3 -3 -3 -2 -2 -2 -------- Run | Yrd Mat Sub Scr Fac Low Low Dat Pro Fac Upp Upp Zhi Pro Fac Upp Upp War Pro Res Qua Res Tes Frg Total Allies 43 | . . . . 5 4 . . . 12 . . . . 6 . . . . 1 . 6 4 5 Largest Group 9 | . . . . 5 9 7 6 6 9 9 8 5 5 5 5 5 5 5 2 . 5 2 2 Highest-Rated Group 354 | . . . . 136 253 190 162 162 354 351 304 181 181 235 235 235 231 231 116 . 323 205 230 Highest-Rated Ally 148 | . . . . 28 30 29 29 29 50 47 47 47 47 64 47 47 47 47 116 . 148 148 120 Initial UFD Resources 89 | . . . . 23 42 42 42 44 44 57 57 57 60 60 75 75 75 79 79 79 82 89 89 Total Orders 36 | . . . . . 4 . . . 2 . 3 2 2 4 9 3 . . 3 . . 4 . STAY 22 | . . . . . 3 . . . 1 . 2 1 1 2 6 2 . . 2 . . 2 . FOLLOW 14 | . . . . . 1 . . . 1 . 1 1 1 2 3 1 . . 1 . . 2 . Ally Attacks 504 | . . . . 9 27 21 . 36 49 39 22 . 38 3 70 8 . 35 22 . 76 26 23 Total Damage 11648 | . . . . 181 428 337 . 419 869 689 414 . 765 54 1405 53 . 716 688 . 1952 1542 1136 Kills 74 | . . . . 1 5 4 . 7 5 9 3 . 2 1 11 1 . 4 . . 11 4 6 Allies Corrupted 3 | . . . . . . . . . . . . . . . . . . . . . . 2 1 Allies Melted 2 | . . . . . . . . . . . . . . . . . . . 1 . . . 1 Intel | -11 -10 -10 -9 -6 -6 -6 -6 -5 -5 -5 -5 -5 -4 -4 -4 -4 -4 -3 -3 -3 -2 -2 -2 ------- Run | Yrd Mat Sub Scr Fac Low Low Dat Pro Fac Upp Upp Zhi Pro Fac Upp Upp War Pro Res Qua Res Tes Frg Active Infowar (turns) 22017 | . . 5699 . 1094 874 850 92 924 623 729 567 67 780 1239 1161 927 302 681 992 500 1136 2315 465 Optics 673 | . . . . 673 . . . . . . . . . . . . . . . . . . . Sensors 16935 | . . 3505 . 477 874 850 92 924 621 729 567 67 780 400 701 836 273 645 888 500 860 1881 465 Seismic 2194 | . . 2194 . . . . . . . . . . . . . . . . . . . . . T.N.C. 2 | . . . . . . . . . . . . . . . . . . . . . 2 . . Jamming 5958 | . . . . . . . . . 2 . . . . 1238 1161 927 96 36 406 . 374 1718 . Robot Analysis Total 7 | . 3 . . . . . . . . . . 4 . . . . . . . . . . . Derelict Logs Recovered 19 | . . 3 5 . 2 . . 3 . . 2 . 1 . 2 1 . . . . . . . Drone Launches . | . . . . . . . . . . . . . . . . . . . . . . . . Drone Recoveries . | . . . . . . . . . . . . . . . . . . . . . . . . Exploration | -11 -10 -10 -9 -6 -6 -6 -6 -5 -5 -5 -5 -5 -4 -4 -4 -4 -4 -3 -3 -3 -2 -2 -2 ------------- Run | Yrd Mat Sub Scr Fac Low Low Dat Pro Fac Upp Upp Zhi Pro Fac Upp Upp War Pro Res Qua Res Tes Frg Turns Passed 35168 | 127 1385 7118 2263 1984 1287 927 101 1003 1168 1001 750 158 1093 1239 1161 927 376 806 2401 1098 1215 2475 3105 Spaces Moved 21220 | 57 589 2829 1001 1446 1140 878 93 729 715 851 722 140 1039 875 984 931 363 773 1427 684 772 1030 1152 Core 3 | 3 . . . . . . . . . . . . . . . . . . . . . . . Treads 3822 | 54 589 2366 811 . . . . . . . . . . . . . . . . . . . 2 Legs . | . . . . . . . . . . . . . . . . . . . . . . . . Wheels 17395 | . . 463 190 1446 1140 878 93 729 715 851 722 140 1039 875 984 931 363 773 1427 684 772 1030 1150 Hover . | . . . . . . . . . . . . . . . . . . . . . . . . Flight . | . . . . . . . . . . . . . . . . . . . . . . . . Fastest Speed 50 | 50 160 130 145 90 90 95 95 90 90 90 90 90 90 90 90 90 90 90 90 110 100 100 100 Average Speed 125 | 154 160 213 223 93 94 95 95 90 90 90 90 90 90 90 90 90 90 90 103 110 110 173 155 Slowest Speed 300 | 160 240 240 240 95 95 95 95 120 90 90 90 120 90 90 90 90 120 90 110 150 120 265 300 Overloaded Moves . | . . . . . . . . . . . . . . . . . . . . . . . . Propulsion Burnouts . | . . . . . . . . . . . . . . . . . . . . . . . . Robots Hopped . | . . . . . . . . . . . . . . . . . . . . . . . . Potential Cave-ins 5 | . . . . . . . . . . . . . . 2 . . . . . . . . 3 Cave-ins Triggered . | . . . . . . . . . . . . . . . . . . . . . . . . Teleports 1 | . . . . . . . . . . . . . . . . . . . . . . . 1 Exploration Rate (%) 68 | 3 92 97 80 39 98 95 74 86 22 88 78 60 96 22 92 89 58 84 35 90 26 78 50 Regions Visited 23 Branch Regions 17 Pre-discovered Areas 13 | . . 3 2 1 . . 1 1 . . 1 3 . . 1 . . . . . . . . Known Exits Taken 19 | . . . . 1 1 1 1 1 1 1 1 1 1 1 1 1 1 1 1 1 1 1 . Unknown Exits Taken 4 | 1 1 1 1 . . . . . . . . . . . . . . . . . . . . Scrap Searched 40 | . . 6 3 . 3 6 . 1 . 3 2 . 4 . 5 4 . 3 . . . . . Spaces Dug 87 | . . 7 . 5 . . . 2 3 . . . 2 1 3 . . 6 2 6 15 13 22 Terrain Destroyed 1212 | . 13 9 . 239 29 30 . 4 65 2 45 . 64 141 64 81 . 19 59 8 52 38 250 Melee 17 | . . . . 4 . . . . 3 . . . . . . . . . 2 3 . 1 4 Projectile 381 | . . 9 . 1 2 . . 4 . 2 9 . 14 115 19 29 . 19 56 5 18 21 58 AOE 759 | . 13 . . 234 27 30 . . 62 . 36 . 50 26 45 52 . . . . 34 12 138 Terrain Rammed . | . . . . . . . . . . . . . . . . . . . . . . . . Walls Destroyed . | . . . . . . . . . . . . . . . . . . . . . . . . Machines Disabled . | . . . . . . . . . . . . . . . . . . . . . . . . Actions | -11 -10 -10 -9 -6 -6 -6 -6 -5 -5 -5 -5 -5 -4 -4 -4 -4 -4 -3 -3 -3 -2 -2 -2 --------- Run | Yrd Mat Sub Scr Fac Low Low Dat Pro Fac Upp Upp Zhi Pro Fac Upp Upp War Pro Res Qua Res Tes Frg Total 27593 | 82 915 3694 1027 1857 1311 958 103 1054 1144 1074 809 171 1163 1173 1231 993 410 858 2038 914 1049 1523 2042 Wait 3399 | 1 191 676 . 192 79 55 7 291 155 189 62 13 75 116 194 24 27 35 223 53 125 202 414 Move 21197 | 56 588 2828 1000 1445 1139 877 92 728 714 850 721 139 1038 874 983 930 362 772 1426 683 771 1029 1152 Hop . | . . . . . . . . . . . . . . . . . . . . . . . . Pick Up 208 | 6 17 26 9 16 2 5 . 3 9 4 2 1 3 7 5 2 2 4 32 12 9 20 12 Fast Attach 165 | 7 6 1 2 20 2 . . 3 . 3 2 5 . 5 5 1 5 1 23 11 11 23 29 Attach 101 | . 1 1 . 5 1 1 . 3 2 1 . 1 . 5 . 1 . . 18 9 6 18 28 Detach 97 | 1 4 . . 2 3 . . 2 1 1 . 2 . 5 1 . 1 1 14 7 4 22 26 Swap 472 | 1 10 49 4 41 15 8 3 8 24 9 8 2 20 27 15 10 5 13 54 18 33 41 54 Drop 251 | . 15 27 11 23 4 5 . 3 6 7 4 5 5 8 8 2 7 5 33 14 21 28 10 Fire 1216 | 9 72 86 . 101 20 7 . 13 66 8 10 . 21 123 20 23 . 26 175 58 42 63 273 Melee 133 | . . . 1 11 . . 1 . 6 2 . 3 . 2 . . 1 . 2 22 16 61 5 Ram . | . . . . . . . . . . . . . . . . . . . . . . . . Kick . | . . . . . . . . . . . . . . . . . . . . . . . . Crush 12 | 1 11 . . . . . . . . . . . . . . . . . . . . . . Escape Stasis 88 | . . . . . . . . . 8 . . . . . . . . . . 24 8 16 32 Rewire 46 | . . . . . 46 . . . . . . . . . . . . . . . . . . Trap 189 | . . . . . . . . . 153 . . . . . . . . . 36 . . . . Miscellaneous 19 | . . . . 1 . . . . . . . . 1 1 . . . 1 2 3 3 . 7 Route ------- -11/Scrapyard -10/Materials (discovered 5 exits: [*Mat x3] / [*Min] / *Sub) -10/Subcaves (discovered 3 exits: [*Mat x2] / [*Scr]) -9/Scraptown (discovered 2 exits: *Fac x2) -6/Factory (discovered 6 exits: *Fac x4 / *Low x2) -6/Lower Caves -6/Lower Caves (discovered 2 exits: *Fac / *Dat) -6/Data Miner -5/Proximity Caves -5/Factory (discovered 2 exits: Fac / *Upp) -5/Upper Caves -5/Upper Caves -5/Zhirov -4/Proximity Caves -4/Factory (discovered 4 exits: *Upp x2 / Ext x2) -4/Upper Caves -4/Upper Caves (discovered 2 exits: *Res / *War) -4/Warlord -3/Proximity Caves -3/Research (discovered 3 exits: *Res / Arm / *Qua) -3/Quarantine -2/Research (discovered 2 exits: *Acc / *Tes) -2/Testing (discovered 3 exits: *Acc / [*Sec] / *Frg) -2/Protoforge History --------- Turn | Location | Event 52 | -11/Scrapyard | Discovered new exit (range 16) 128 | -11/Scrapyard | Entered Materials 154 | -10/Materials | Central database locked down 315 | -10/Materials | Build established: Mutant 682 | -10/Materials | Discovered new exit (range 8) 782 | -10/Materials | Repaired Lgt. Treads 856 | -10/Materials | Discovered new exit (range 13) 943 | -10/Materials | Core integrity fell below 50% 1294 | -10/Materials | Discovered new exit (range 13) 1497 | -10/Materials | Discovered new exit (range 11) 1504 | -10/Materials | Discovered new exit (range 7) 1513 | -10/Materials | Entered Subcaves 1514 | -10/Subcaves | Approached by a straggling Scientist 1528 | -10/Subcaves | Learned location of 1 exit from Materials 1570 | -10/Subcaves | Shifting Twisted Machinery released Barrage Gun 1573 | -10/Subcaves | Learned location of Zion (-7) 1578 | -10/Subcaves | Shifting Twisted Machinery released Sub. Power Source 2122 | -10/Subcaves | Visited Clippyterm 2127 | -10/Subcaves | Learned location of Extension (-4) 2127 | -10/Subcaves | Learned Factory garrison access intel 2143 | -10/Subcaves | Discovered new exit (range 11) 2174 | -10/Subcaves | Disturbed a concealed Subdweller 2976 | -10/Subcaves | Met a Zionite searching for "candidates" 3269 | -10/Subcaves | Shifting Twisted Machinery released Sub. Monowheel 3472 | -10/Subcaves | Shifting Twisted Machinery released Mak. Shrapnel Gun 3712 | -10/Subcaves | A swath of the cavern ceiling suddenly collapsed 4679 | -10/Subcaves | A swath of the cavern ceiling suddenly collapsed 6238 | -10/Subcaves | Discovered new exit (range 11) 6345 | -10/Subcaves | Visited 4L-MR0's lab 6380 | -10/Subcaves | Found Maxwheels 6922 | -10/Subcaves | Shifting Twisted Machinery released Battle Rifle 6936 | -10/Subcaves | Shifting Twisted Machinery released Sub. Laser 7711 | -10/Subcaves | Ambushed by Subdweller buried in earth 8631 | -10/Subcaves | Entered Scraptown 8864 | -9/Scraptown | Heard Great Nut preacher, LISTEN AND RECITE! 8879 | -9/Scraptown | Visited Junk Repository 8953 | -9/Scraptown | Visited Symbiants 9234 | -9/Scraptown | Discovered new exit (range 11) 9323 | -9/Scraptown | Scanned Subdweller tech in exchange for log data 9327 | -9/Scraptown | Learned Research emergency access door positions 9330 | -9/Scraptown | Learned 8 Factory zone layouts 9332 | -9/Scraptown | Learned location of Quarantine (-3) 9335 | -9/Scraptown | Learned Research stockpile data 9337 | -9/Scraptown | Learned location of 1 exit from Lower Caves 9417 | -9/Scraptown | Visited Red Mages 9448 | -9/Scraptown | Visited Comm Corps 9491 | -9/Scraptown | Visited The Evicted 9510 | -9/Scraptown | Visited Awakened 9626 | -9/Scraptown | Visited Cave Peace 9662 | -9/Scraptown | Visited UFD Registry 9662 | -9/Scraptown | Registered with UFD as "Flashmod" 9731 | -9/Scraptown | Visited Derelict Rescue Squad 9746 | -9/Scraptown | Found DRS Beacon 9891 | -9/Scraptown | Delivered Scrap Shield to a Scientist 9980 | -9/Scraptown | Visited Curators Association 10016 | -9/Scraptown | Visited Infowarlord's Domain 10036 | -9/Scraptown | Found Exp. Signal Interpreter 10085 | -9/Scraptown | Visited Junk Repository 10137 | -9/Scraptown | Visited LU-1G1's Boring Crew 10209 | -9/Scraptown | Visited Research Penetration Think Tank 10272 | -9/Scraptown | Visited Modified Component R&D 10684 | -9/Scraptown | Visited Scrap Suit Storage 10695 | -9/Scraptown | Found Scrap Suit 10812 | -9/Scraptown | Met Optimus 10812 | -9/Scraptown | Accepted into 0bPrime 10890 | -9/Scraptown | Discovered new exit (range 3) 10894 | -9/Scraptown | Entered Factory 10894 | -6/Factory | Evolved 8 slots: Power x1, Propulsion x2, Utility x4, Weapon x1 10895 | -6/Factory | Identified exit to Factory 10896 | -6/Factory | Loaded intel: 4 garrison access locations 10896 | -6/Factory | Attached Maxwheels, gained temporary slots: Weapon x2 11058 | -6/Factory | Identified exit to Lower Caves 11065 | -6/Factory | Loaded intel: 8 recycling unit locations 11231 | -6/Factory | Build established: Tank 11633 | -6/Factory | Learned location of Protoforge (-2) 11738 | -6/Factory | Spotted B-75 Beast 11793 | -6/Factory | Destroyed B-75 Beast 11812 | -6/Factory | Lost 3 parts (1p1u1w) 12263 | -6/Factory | Discovered exit to Factory (range 13) 12453 | -6/Factory | Repaired Lyr. Medium Armor Plating? 12625 | -6/Factory | Discovered exit to Factory (range 15) 12832 | -6/Factory | Scrapoids reinforcements arrived? 12878 | -6/Factory | Entered Lower Caves 12878 | -6/Lower Caves | Accompanied by 5 allies 12879 | -6/Lower Caves | Identified exit to Lower Caves 12880 | -6/Lower Caves | UFD Scientist delivered a prototype 12883 | -6/Lower Caves | Attached CPS modules to 06F01-D 12888 | -6/Lower Caves | Found Prototype Protection 12888 | -6/Lower Caves | Identified Enh. Scrap Shield 12987 | -6/Lower Caves | Attacked by a delusional Derelict stockpiling Unaware 13278 | -6/Lower Caves | Learned Factory security intel 13324 | -6/Lower Caves | Found DRS Beacon 13401 | -6/Lower Caves | Build established: Commander-Skirmisher 13412 | -6/Lower Caves | Entered a destroyed Warlord outpost 13474 | -6/Lower Caves | Attracted the attention of an 0b10 checkpoint 13497 | -6/Lower Caves | Learned Factory trap positions 13596 | -6/Lower Caves | Encountered a Warlord checkpoint 14165 | -6/Lower Caves | Entered another Lower Caves area 14165 | -6/Lower Caves | Accompanied by 7 allies 14281 | -6/Lower Caves | Discovered exit to Factory (range 16) 14355 | -6/Lower Caves | Attached CPS modules to 06F02-D 14365 | -6/Lower Caves | Found Scrap Suit 14558 | -6/Lower Caves | Discovered new exit (range 13) 14579 | -6/Lower Caves | Identified exit to Data Miner 14744 | -6/Lower Caves | Encountered a Warlord checkpoint 15092 | -6/Lower Caves | Entered Data Miner 15092 | -6/Data Miner | Accompanied by 6 allies 15094 | -6/Data Miner | Discovered new exit (range 6) 15112 | -6/Data Miner | Met Data Miner 15145 | -6/Data Miner | Learned location of Section 7 (-2) 15145 | -6/Data Miner | Acquired the access code to Warlord's prototype stash 15158 | -6/Data Miner | Received God Mode back door access code from Data Miner 15182 | -6/Data Miner | Identified exit to Proximity Caves 15193 | -6/Data Miner | Entered Proximity Caves 15193 | -5/Proximity Caves | Accompanied by 6 allies 15196 | -5/Proximity Caves | Spotter reported a threat 15325 | -5/Proximity Caves | Found Scrap Suit 15334 | -5/Proximity Caves | Attached CPS modules to 06F02-D 15343 | -5/Proximity Caves | Lost 3 allies 15560 | -5/Proximity Caves | Received a Behemoth hack from an annoying Tinkerer 15604 | -5/Proximity Caves | Build established: Scavenger-Scrapper 15907 | -5/Proximity Caves | Learned 8 Factory zone layouts 15955 | -5/Proximity Caves | Learned location of 1 exit from Factory 16031 | -5/Proximity Caves | Discovered exit to Factory (range 15) 16196 | -5/Proximity Caves | Entered Factory 16196 | -5/Factory | Accompanied by 2 allies 16196 | -5/Factory | Evolved 2 slots: Utility x2 16197 | -5/Factory | Identified exit to Factory 16198 | -5/Factory | Identified exit to Upper Caves 16199 | -5/Factory | Loaded intel: 94 trap records 16534 | -5/Factory | Loaded intel: 8 recycling unit locations 17015 | -5/Factory | Incoming investigation squad redirected 17202 | -5/Factory | Scrapoids reinforcements arrived? 17315 | -5/Factory | Fabricated G-50 Soldier? 17324 | -5/Factory | Lost 3 allies 17364 | -5/Factory | Entered Upper Caves 17364 | -5/Upper Caves | Accompanied by 9 allies 17580 | -5/Upper Caves | Found Alien Artifact 17616 | -5/Upper Caves | Build established: Commander-Scrapper 17860 | -5/Upper Caves | Discovered new exit (range 11) 18338 | -5/Upper Caves | Identified exit to Upper Caves 18365 | -5/Upper Caves | Entered another Upper Caves area 18365 | -5/Upper Caves | Accompanied by 8 allies 18441 | -5/Upper Caves | Lost 3 allies 18558 | -5/Upper Caves | Learned Factory terminal intel 18561 | -5/Upper Caves | Learned location of Armory (-3) 18701 | -5/Upper Caves | Build established: Scavenger-Scrapper 18875 | -5/Upper Caves | Discovered new exit (range 9) 19101 | -5/Upper Caves | Identified exit to Zhirov 19115 | -5/Upper Caves | Entered Zhirov 19115 | -5/Zhirov | Accompanied by 5 allies 19117 | -5/Zhirov | Discovered new exit (range 3) 19134 | -5/Zhirov | Met Zhirov 19164 | -5/Zhirov | Learned location of Testing (-2) 19164 | -5/Zhirov | Learned location of Command (-1) 19169 | -5/Zhirov | Zhirov requested help retrieving the SGEMP Prototype 19183 | -5/Zhirov | Found Alien Artifact 19183 | -5/Zhirov | Identified Integrated Reactor 19183 | -5/Zhirov | Installed Integrated Reactor, increased core energy generation (+10) 19224 | -5/Zhirov | Found Alien Artifact 19257 | -5/Zhirov | Identified exit to Proximity Caves 19273 | -5/Zhirov | Entered Proximity Caves 19273 | -4/Proximity Caves | Accompanied by 5 allies 19348 | -4/Proximity Caves | Destroyed 7 combat bots 19350 | -4/Proximity Caves | Activated DRS Beacon 19696 | -4/Proximity Caves | Spotted B-86 Titan 19711 | -4/Proximity Caves | Allies destroyed B-86 Titan 20049 | -4/Proximity Caves | Learned 4 Research zone layouts 20226 | -4/Proximity Caves | Discovered exit to Factory (range 7) 20295 | -4/Proximity Caves | Found Scrap Suit 20366 | -4/Proximity Caves | Entered Factory 20366 | -4/Factory | Accompanied by 2 allies 20366 | -4/Factory | Evolved 2 slots: Utility x2 20367 | -4/Factory | Loaded intel: 28 terminal locations 20448 | -4/Factory | Loaded intel: 8 recycling unit locations 20574 | -4/Factory | Spotted B-86 Titan 20608 | -4/Factory | Destroyed 10 combat bots 20650 | -4/Factory | Destroyed B-86 Titan 20722 | -4/Factory | Found Prototype Launcher 20722 | -4/Factory | Identified Mni. Smartbomb Launcher 20942 | -4/Factory | Identified exit to Upper Caves 20942 | -4/Factory | Identified exit to Extension 21366 | -4/Factory | First assault squad dispatched 21390 | -4/Factory | Incoming assault squad redirected 21490 | -4/Factory | Incoming investigation squad redirected 21573 | -4/Factory | Scrapoids reinforcements arrived? 21605 | -4/Factory | Entered Upper Caves 21605 | -4/Upper Caves | Accompanied by 5 allies 21798 | -4/Upper Caves | Encountered a Warlord checkpoint 21798 | -4/Upper Caves | Spotted B-86 Titan 21814 | -4/Upper Caves | Allies destroyed B-86 Titan 22432 | -4/Upper Caves | Found Imp. Powered Armor 22571 | -4/Upper Caves | Discovered new exit (range 14) 22597 | -4/Upper Caves | Identified exit to Upper Caves 22628 | -4/Upper Caves | Learned Research security intel 22766 | -4/Upper Caves | Entered another Upper Caves area 22766 | -4/Upper Caves | Accompanied by 5 allies 22784 | -4/Upper Caves | Discovered new exit (range 9) 22875 | -4/Upper Caves | Learned Research stockpile data 23021 | -4/Upper Caves | Encountered a Warlord checkpoint 23474 | -4/Upper Caves | Discovered new exit (range 10) 23484 | -4/Upper Caves | Identified exit to Warlord 23693 | -4/Upper Caves | Entered Warlord 23693 | -4/Warlord | Accompanied by 5 allies 23757 | -4/Warlord | Opened Warlord's prototype stash 23763 | -4/Warlord | Found Prototype Device 23763 | -4/Warlord | Identified Exp. Focal Shield 23769 | -4/Warlord | Found Prototype Processor 23769 | -4/Warlord | Identified Exp. Targeting Computer 23786 | -4/Warlord | Found System Mapper 24040 | -4/Warlord | Opened side exit 24057 | -4/Warlord | Discovered new exit (range 10) 24067 | -4/Warlord | Identified exit to Proximity Caves 24069 | -4/Warlord | Entered Proximity Caves 24069 | -3/Proximity Caves | Accompanied by 5 allies 24220 | -3/Proximity Caves | Activated DRS Beacon 24308 | -3/Proximity Caves | Found Scrap Suit 24332 | -3/Proximity Caves | Attracted the attention of an 0b10 checkpoint 24656 | -3/Proximity Caves | Discovered new exit (range 13) 24713 | -3/Proximity Caves | Identified exit to Research 24875 | -3/Proximity Caves | Entered Research 24875 | -3/Research | Accompanied by 2 allies 24875 | -3/Research | Evolved 2 slots: Power x1, Utility x1 24876 | -3/Research | Identified exit to Armory 25089 | -3/Research | Discovered new exit (range 7) 25146 | -3/Research | Identified exit to Research 25361 | -3/Research | Destroyed 7 combat bots 25397 | -3/Research | Incoming investigation squad redirected 25910 | -3/Research | Spotted B-86 Titan 26052 | -3/Research | Destroyed B-86 Titan 26087 | -3/Research | System corruption reached 10% 26117 | -3/Research | Lost 4 parts (1u3w) 26144 | -3/Research | Destroyed 10 combat bots 26182 | -3/Research | Lost 3 parts (1p1u1w) 26375 | -3/Research | First assault squad dispatched 26461 | -3/Research | Lost 4 parts (2u2w) 26516 | -3/Research | Found Fusion Bomb Launcher 26627 | -3/Research | Found Prototype Launcher 26627 | -3/Research | Identified Hellfire Missile Launcher 26729 | -3/Research | Build established: Scavenger-Gunner 26741 | -3/Research | Incoming assault squad redirected 26890 | -3/Research | Incoming assault squad redirected 26900 | -3/Research | Incoming assault squad redirected 26907 | -3/Research | Spotted B-86 Titan 26909 | -3/Research | Befriended a Behemoth using the annoying Tinkerer's hack 27057 | -3/Research | Watched by a mysterious "MATRIX" hacker 27214 | -3/Research | High security lockdown imminent 27266 | -3/Research | Discovered new exit (range 10) 27275 | -3/Research | Identified exit to Quarantine 27276 | -3/Research | Entered Quarantine 27290 | -3/Quarantine | Found Alien Slashing Weapon 27290 | -3/Quarantine | Identified Sigix Broadsword 27377 | -3/Quarantine | Cryocooling Duct disabled 27392 | -3/Quarantine | Ambient heat levels rising (+20) 27392 | -3/Quarantine | Non-combat units ordered to evacuate 27555 | -3/Quarantine | Found Alien Artifact 27555 | -3/Quarantine | Identified Phase Redirector 27577 | -3/Quarantine | Build established: Mutant 27620 | -3/Quarantine | System corruption reached 30% 27631 | -3/Quarantine | Cryocooling Duct disabled 27646 | -3/Quarantine | Ambient heat levels rising (+20) 27646 | -3/Quarantine | Combat units ordered to evacuate 27746 | -3/Quarantine | Quarantine Guard activated 27749 | -3/Quarantine | Found Imp. Powered Armor 27790 | -3/Quarantine | Found Alien Artifact 27792 | -3/Quarantine | Identified Subatomic Replicator 27792 | -3/Quarantine | Used Subatomic Replicator to create Alien Artifact 27906 | -3/Quarantine | Spotted Quarantine Guard 27915 | -3/Quarantine | Spotted Quarantine Guard 27918 | -3/Quarantine | Destroyed Quarantine Guard 27922 | -3/Quarantine | Spotted Quarantine Guard 27929 | -3/Quarantine | Destroyed Quarantine Guard 27931 | -3/Quarantine | Spotted Quarantine Guard 27949 | -3/Quarantine | Destroyed Quarantine Guard 28024 | -3/Quarantine | Spotted Quarantine Guard 28039 | -3/Quarantine | Destroyed Quarantine Guard 28078 | -3/Quarantine | Destroyed Quarantine Guard 28101 | -3/Quarantine | Lost 4 parts (2p2u) 28286 | -3/Quarantine | Discovered exit to Research (range 15) 28286 | -3/Quarantine | Spotted Quarantine Guard 28298 | -3/Quarantine | Destroyed Quarantine Guard 28327 | -3/Quarantine | Central database locked down 28327 | -3/Quarantine | Identified Supercharged TR 28359 | -3/Quarantine | Build established: Scavenger-Mutant 28363 | -3/Quarantine | Found Alien Impact Weapon 28374 | -3/Quarantine | Entered Research 28374 | -2/Research | Evolved 2 slots: Propulsion x2 28849 | -2/Research | Loaded intel: 5 recycling unit locations 29105 | -2/Research | Spotted B-90 Cyclops 29110 | -2/Research | Befriended a Behemoth using the annoying Tinkerer's hack 29121 | -2/Research | Discovered new exit (range 15) 29161 | -2/Research | Scrapoid reinforcements arrived 29176 | -2/Research | Destroyed 7 combat bots 29249 | -2/Research | Identified exit to Access 29374 | -2/Research | First assault squad dispatched 29402 | -2/Research | Found Prototype Launcher 29402 | -2/Research | Identified Adv. Micro-nuke Launcher 29526 | -2/Research | P-80 Master assimilated allied 02R19-D 29553 | -2/Research | Identified Core Stripper 29556 | -2/Research | Lost 3 allies 29556 | -2/Research | Discovered new exit (range 10) 29588 | -2/Research | Identified exit to Testing 29589 | -2/Research | Entered Testing 29598 | -2/Testing | Lost 5 parts (2p3u) 29724 | -2/Testing | Found Prototype Energy Gun 29724 | -2/Testing | Identified Hyp. EM Gauss Rifle 29768 | -2/Testing | Found Prototype Device 29768 | -2/Testing | Identified Exp. Hardlight Generator 29838 | -2/Testing | Discovered exit to Access (range 4) 30160 | -2/Testing | Found Prototype Energy Cannon 30160 | -2/Testing | Identified Cld. Nova Cannon 30265 | -2/Testing | Found Exp. Signal Interpreter 30272 | -2/Testing | Found Prototype Launcher 30272 | -2/Testing | Identified Enh. Gamma Bomb Array 30290 | -2/Testing | Found Prototype Device 30290 | -2/Testing | Identified Thermal Barrier 30461 | -2/Testing | Found Prototype Ballistic Cannon 30461 | -2/Testing | Identified Perforator 30549 | -2/Testing | Found Prototype Device 30549 | -2/Testing | Identified AEGIS Remote Shield 30639 | -2/Testing | Found Prototype Device 30639 | -2/Testing | Identified 2N-1CE's Frost Array 30677 | -2/Testing | P-80 Master assimilated allied Terminator 9b 30702 | -2/Testing | Build established: Hacker-Gladiator 30811 | -2/Testing | Found Portable AFG 30904 | -2/Testing | Found Prototype Processor 30904 | -2/Testing | Identified Exp. Melee Analysis Suite 30947 | -2/Testing | Found Exp. Hacking Suite 30996 | -2/Testing | Found System Mapper 31048 | -2/Testing | Found Prototype Energy Gun 31048 | -2/Testing | Identified Tachyon Dispersion Ray 31223 | -2/Testing | Found Mni. Smartbomb Launcher 31572 | -2/Testing | Found Prototype Protection 31572 | -2/Testing | Identified SHELL Armor 31589 | -2/Testing | First assault squad dispatched 31607 | -2/Testing | Rewired PY-JPUB4V1PMB 31860 | -2/Testing | Spotted Fortress 31954 | -2/Testing | Build established: Scavenger-Gladiator 31994 | -2/Testing | Discovered new exit (range 6) 31994 | -2/Testing | Discovered new exit (range 6) 32001 | -2/Testing | Identified exit to Protoforge 32064 | -2/Testing | Entered Protoforge 32385 | -2/Protoforge | Superfortress began startup sequence 32390 | -2/Protoforge | Spotted Hotshot 32390 | -2/Protoforge | Spotted Hotshot 32397 | -2/Protoforge | Destroyed Hotshot 32400 | -2/Protoforge | Destroyed Hotshot 32514 | -2/Protoforge | Spotted Hotshot 32515 | -2/Protoforge | Spotted Hotshot 32533 | -2/Protoforge | Destroyed Hotshot 32538 | -2/Protoforge | Destroyed Hotshot 32648 | -2/Protoforge | Spotted AP7-3 32823 | -2/Protoforge | Build established: Scavenger-Tank 33254 | -2/Protoforge | Spotted EXE-6 33254 | -2/Protoforge | Spotted EXE-6 33271 | -2/Protoforge | Destroyed EXE-6 33280 | -2/Protoforge | Destroyed EXE-6 33287 | -2/Protoforge | Found Prototype Processor 33287 | -2/Protoforge | Identified Exp. Armor Integrity Analyzer 33293 | -2/Protoforge | Found Prototype Processor 33293 | -2/Protoforge | Identified Exp. Core Analyzer 33299 | -2/Protoforge | Found Exp. Core Analyzer 33341 | -2/Protoforge | UFD initiated attack on Protoforge (Readiness: Adequate) 33341 | -2/Protoforge | Loaded intel: 3 recycling unit locations 33378 | -2/Protoforge | Optimus greeted in Protoforge 33395 | -2/Protoforge | Spotted Decapitator 33408 | -2/Protoforge | Identified Dimensional Node Initializer 33408 | -2/Protoforge | Initialized slip node 33434 | -2/Protoforge | Lost 6 allies 33569 | -2/Protoforge | Met 7R-MNS 33599 | -2/Protoforge | Spotted Executioner 33599 | -2/Protoforge | Warped through subspace to slip node 33600 | -2/Protoforge | Optimus attacked Superfortress 33602 | -2/Protoforge | Spotted Hotshot 33610 | -2/Protoforge | Spotted Decapitator 33613 | -2/Protoforge | Spotted Immortal 33633 | -2/Protoforge | Lost 7 parts (2p2n2u1w) 33642 | -2/Protoforge | Lost 4 allies 33709 | -2/Protoforge | UFD reported confirmed Drillbomb installation 33755 | -2/Protoforge | UFD reported confirmed Drillbomb installation 33839 | -2/Protoforge | Found Scrap Suit 33949 | -2/Protoforge | Spotted Striker 33963 | -2/Protoforge | Spotted Striker 34055 | -2/Protoforge | Spotted Executioner 34059 | -2/Protoforge | Destroyed Executioner 34091 | -2/Protoforge | Spotted Executioner 34094 | -2/Protoforge | UFD reported confirmed Drillbomb installation 34103 | -2/Protoforge | Destroyed Executioner 34165 | -2/Protoforge | Lost 7 allies 34212 | -2/Protoforge | Spotted Striker 34214 | -2/Protoforge | Found Exp. Core Analyzer 34219 | -2/Protoforge | Spotted Striker 34219 | -2/Protoforge | Spotted Immortal 34224 | -2/Protoforge | Spotted Immortal 34229 | -2/Protoforge | Destroyed Striker 34236 | -2/Protoforge | Rewired Immortal 34244 | -2/Protoforge | Allies destroyed Immortal 34302 | -2/Protoforge | Spotted Decapitator 34303 | -2/Protoforge | Spotted Decapitator 34303 | -2/Protoforge | Spotted Decapitator 34303 | -2/Protoforge | Spotted Decapitator 34304 | -2/Protoforge | Destroyed Decapitator 34304 | -2/Protoforge | Destroyed Decapitator 34321 | -2/Protoforge | Destroyed Decapitator 34329 | -2/Protoforge | Spotted Executioner 34330 | -2/Protoforge | Spotted Striker 34363 | -2/Protoforge | Spotted Executioner 34365 | -2/Protoforge | Spotted Executioner 34393 | -2/Protoforge | Lost 15 allies 34449 | -2/Protoforge | Spotted Executioner 34451 | -2/Protoforge | Destroyed Executioner 34458 | -2/Protoforge | System corruption reached 10% 34478 | -2/Protoforge | Lost 8 allies 34511 | -2/Protoforge | Spotted Executioner 34525 | -2/Protoforge | Core integrity fell below 50% 34534 | -2/Protoforge | Spotted Executioner 34534 | -2/Protoforge | Spotted Striker 34536 | -2/Protoforge | Spotted Striker 34545 | -2/Protoforge | Spotted Executioner 34546 | -2/Protoforge | Spotted Striker 34547 | -2/Protoforge | Spotted Striker 34549 | -2/Protoforge | Destroyed Striker 34553 | -2/Protoforge | Destroyed Executioner 34562 | -2/Protoforge | Destroyed Executioner 34575 | -2/Protoforge | Found 0bPrime Scrap Suit 34583 | -2/Protoforge | Destroyed 15 combat bots 34594 | -2/Protoforge | Lost 10 allies 34603 | -2/Protoforge | Spotted Striker 34609 | -2/Protoforge | Spotted Striker 34618 | -2/Protoforge | Found 0bPrime Scrap Suit 34652 | -2/Protoforge | Spotted Immortal 34655 | -2/Protoforge | Spotted Immortal 34663 | -2/Protoforge | Rewired Immortal 34666 | -2/Protoforge | Rewired Immortal 34675 | -2/Protoforge | Lost 4 allies 34682 | -2/Protoforge | Installed UFD Drillbomb at designated target 34682 | -2/Protoforge | UFD reported confirmed Drillbomb installation 34714 | -2/Protoforge | Spotted Hotshot 34714 | -2/Protoforge | Spotted Hotshot 34736 | -2/Protoforge | Allies destroyed Hotshot 34736 | -2/Protoforge | Spotted Hotshot 34740 | -2/Protoforge | Spotted Executioner 34743 | -2/Protoforge | Allies destroyed Hotshot 34753 | -2/Protoforge | Destroyed Hotshot 34755 | -2/Protoforge | Spotted Hotshot 34761 | -2/Protoforge | Destroyed Executioner 34765 | -2/Protoforge | Spotted Executioner 34778 | -2/Protoforge | Destroyed Executioner 34785 | -2/Protoforge | Lost 5 allies 34852 | -2/Protoforge | Allies destroyed Hotshot 34878 | -2/Protoforge | Build established: Scavenger-Scrapper 34922 | -2/Protoforge | Spotted Striker 34923 | -2/Protoforge | Spotted Executioner 34924 | -2/Protoforge | Spotted Executioner 34925 | -2/Protoforge | Spotted Executioner 34942 | -2/Protoforge | Spotted Hotshot 34946 | -2/Protoforge | Spotted Hotshot 34951 | -2/Protoforge | Spotted Hotshot 34954 | -2/Protoforge | Spotted Hotshot 34969 | -2/Protoforge | Destroyed Executioner 34972 | -2/Protoforge | Destroyed Hotshot 34972 | -2/Protoforge | Destroyed Hotshot 34976 | -2/Protoforge | Scanned by Researcher 34979 | -2/Protoforge | Destroyed Executioner 34982 | -2/Protoforge | Destroyed Hotshot 34985 | -2/Protoforge | Destroyed Hotshot 34987 | -2/Protoforge | Spotted Executioner 34990 | -2/Protoforge | Spotted Striker 34991 | -2/Protoforge | Destroyed Executioner 34994 | -2/Protoforge | Destroyed Striker 34994 | -2/Protoforge | Destroyed Striker 34997 | -2/Protoforge | UFD reported confirmed Drillbomb installation 35000 | -2/Protoforge | Destroyed Executioner 35027 | -2/Protoforge | Spotted Executioner 35027 | -2/Protoforge | Spotted Striker 35028 | -2/Protoforge | UFD reported confirmed Drillbomb installation 35031 | -2/Protoforge | Destroyed Executioner 35034 | -2/Protoforge | Destroyed Striker 35063 | -2/Protoforge | Found Prototype Processor 35063 | -2/Protoforge | Identified Exp. Targeting Computer 35092 | -2/Protoforge | Spotted Striker 35094 | -2/Protoforge | Destroyed 24 combat bots 35094 | -2/Protoforge | Spotted Striker 35097 | -2/Protoforge | Destroyed Striker 35099 | -2/Protoforge | Spotted Executioner 35104 | -2/Protoforge | Spotted Executioner 35113 | -2/Protoforge | Core integrity fell below 20% 35114 | -2/Protoforge | Destroyed Executioner 35123 | -2/Protoforge | Destroyed Executioner 35128 | -2/Protoforge | Spotted Immortal 35130 | -2/Protoforge | Spotted Immortal 35130 | -2/Protoforge | Spotted Immortal 35149 | -2/Protoforge | Destroyed 12 combat bots 35152 | -2/Protoforge | Lost 6 parts (2p1n2u1w) 35169 | -2/Protoforge | Self-destructed Last Messages --------------- 35127_ System corrupted: Heat flow error (+118). 35128_ Slug penetrates P-80 Master. 35128_ P-80 Master destroyed. 35128_ Slug penetrates Earth. 35130_ Ovr. Huge Scrapsphere repairs itself (+19). 35130_ Acquired 41 matter. 35133_ Acquired 239 matter. 35138_ The unstable cave ceiling collapses. 35150_ System corrupted: Component data lost. 35156_ Triggered Stasis Trap. 35156_ A bubble of rippling energy engulfs the area. 35156_ Field strength at 90. 35157_ Field strength at 80. 35158_ Field strength at 70. 35159_ Field strength at 60. 35160_ Field strength at 50. 35161_ Field strength at 40. 35161_ Critical hit (Impale). 35162_ Stasis field depleted. 35164_ Critical hit (Impale). Map ----- +----------------------------------------------------+ | ?????????????????????????????????????????????????? | | ?????????????????????????????????????????????????? | | ?????????????????????????????????????????????????? | | ?????????????????????????????????????????????????? | | ?????????????????????????????????????????????????? | | ?????????????????????????????????????????????????? | | ?????????????????????????????????????????????????? | | ?????????????????????????????????????????????????? | | ?????????????????????????????????????????????????? | | ?????????????????????????????????????????????????? | | ?????????????????????????????????????????????????? | | ?????????????????????????????????????????????????? | | ?????????????????????????????????????????????????? | | ?????????????????????????????????????????????????? | | ?????????????????????????????????????????????????? | | ?????????????????????????????????????????????????? | | ?????????????????????????????????????????????????? | | ????????????????????#######??????????????????????? | | ????????????????????? ??????????????????????? | | ????????????????????? ??????????????????????? | | ?????????????????????? ??????????????????????? | | ??????????????????????# #??????????????????????? | | ??????????????????????# #??????????????????????? | | ??????????????????????# #??????????????????????? | | ??????????????????????# #??????????????????????? | | ??????????????????????# @#???????????????????#??? | | ??????????????????????#lll#?????????????????? #??? | | ??????????????????????# #????????????????? #??? | | ??????????????????????# ################# #??? | | ??????????????????????# c #??? | | ??????????????????????# #??? | | ??????????????????????# #??? | | ??????????????????????######## #####?????? | | ?????????????????????????????# #?????????? | | ?????????????????????????????# #?????????? | | ?????????????????????????????# #?????????? | | ?????????????????????????????# #?????????? | | ??????????????????????######### ####???????? | | ?????????????????????## ### # #???????? | | ?????????????????????##""%"""#" ""#######??? | | ????????????????????### * [ %= """""""#??? | | ##?########?######### # [ != " #??? | | ##?########?######### ! = "" #??? | | #####????#####""""# "" ##?? | | #####????####" !!!#"" ! "### | | ???????? " = % | | ???????? " " | | ???????? " ! ! | | ????????? *==/ = [!! | | ????????? =!=!! %! | +----------------------------------------------------+ Best States ------------- Heat Dissipation 180 Coolant Potential 100 Energy Generation 99 Energy Capacity 1000 Matter Stores 300 Matter Capacity 300 Sight Range 22 Robot Scan Range 19 Terrain Scan Density 10 Jamming Range 16 Power Amplification 40 Base Temperature (-) 200 Corruption Block 20 Armor Coverage 1125 Resistance: TH 50 Propulsion Shielding 90 Weapon Shielding 90 Phase Shifting 15 Evasion (%) 55 Targeting Accuracy 12 Melee Accuracy 8 Target Analysis 8 Core Analysis 12 Armor Integrity Analysis 50 Recoil Reduction 4 Particle Charging 30 Offensive Hacking 40 Defensive Hacking 12 Item Schematics ----------------- Combat Drone Bay | -6/Data Miner | Free Lgt. Regenerative Plating | -6/Data Miner | Free Cld. Gravmag System | -6/Data Miner | Free Imp. Matter Compressor | -6/Data Miner | Free Hvy. Proton Cannon | -6/Data Miner | Free Impulse Thruster | -6/Data Miner | Free Imp. Force Field | -6/Data Miner | Free Phase Gun | -6/Data Miner | Free Adv. Weapon Cycler | -6/Data Miner | Free Lgt. Particle Reactor | -6/Data Miner | Free Assault Drone Bay | -5/Zhirov | Free Exp. Heat Sink | -5/Zhirov | Free Exp. Optical Array | -5/Zhirov | Free Imp. Arc Thrower | -5/Zhirov | Free Centrium Heavy Armor Plating | -2/Testing | Archive Exp. Reaction Control System | -2/Testing | Archive Exp. Cooling System | -2/Testing | Archive Hvy. Tesla Rifle | -2/Testing | Archive Gravity Neutralizer | -2/Testing | Archive Spectral Analyzer | -2/Testing | Archive Robot Schematics ------------------ R-10 Processor | -6/Data Miner | Free Y-54 Guardian | -6/Data Miner | Free L-41 Fighter | -6/Data Miner | Free M-22 Extractor | -6/Data Miner | Free A-27 Freighter | -6/Data Miner | Free G-50 Soldier | -6/Data Miner | Free G-73 Enforcer | -2/Testing | Archive B-74 Champion | -2/Testing | Archive R-06 Scavenger | -2/Testing | Archive T-07 Excavator | -2/Testing | Archive Fabricated ------------ G-50 Soldier | x3 | -5/Factory Repaired ---------- Lgt. Treads | 68% | -10/Materials Lyr. Medium Armor Plating | 53% | -6/Factory Studied --------- Hvy. Ion Cannon | -6/Factory | Hacked Plasma Rifle | -6/Factory | Hacked Fission Core | -6/Factory | Hacked Particle Reactor | -3/Research | Hacked HERF Cannon | -3/Research | Hacked Lgt. Antimatter Reactor | -3/Research | Hacked Hyp. Mass Driver | -3/Research | Hacked Gamma Rifle | -3/Research | Hacked Mic. Antimatter Reactor | -3/Research | Hacked Fusion Bomb Launcher | -3/Quarantine | Hacked Enh. Nova Cannon | -2/Testing | Hacked Com. Wheel | -2/Protoforge | Hacked Alien Tech Used ----------------- Integrated Reactor Sigix Broadsword Phase Redirector Subatomic Replicator Core Stripper Dimensional Node Initializer Supercharged TR Achievements -------------- None Challenges ------------ None Game ------ Seed PersonalJunkCanceller Manual? 0 Play Time 04:40:03 Cumulative 2306.3 hours Start 2026.08.30 @ 15:32:20 End 2026.08.30 @ 20:34:18 Sessions 3 Manual Loads 0 Difficulty Rogue Special Mode None Game No. 1438 Rogue 1434 Adventurer 4 Explorer 0 Win Type - Total 334 Types 250/15/27/11/4/1/6/10/6/4 Lore% 98 Gallery% 96 Achievement% 94 Wizard Run 0 Options --------- Layout 2 ASCII 0 Keyboard 1 Movement Vi Keybinds 0 Fullscreen 0 Font 24/Terminus Map View 59x48 Zoom Use 0% Tactical HUD 1 Map Filters NONE Filters NONE Steam 1 RUN: 4e48a267-8dc9-423b-9dc5-9dc27499ae1e